{"text_format":"1","workbook":"xlsx","n_sheets":6,"sheets":["Settings","1","2","3","4","5"],"not_rendered":{"charts":0,"images":0,"macros":1,"external_links":0,"defined_names":0,"comments":0,"pivot_tables":0},"unopened":[],"bounds":{"document_bytes":16777216,"sheet_cells":100000,"rows_first":2000,"rows_last":500,"rows_between":2000,"halvings":0,"cell_chars":16384,"cell_head_chars":4096},"cells_cut":0,"cells_raw":0,"read":"whole","date_system":"1900"}

{"sheet":"Settings","index":0,"n_rows":34,"n_cols":3,"rows_kept":34,"cut":false,"hidden":false,"merged":[[0,1,0,4],[7,1,7,4],[14,1,14,4],[21,1,21,4],[28,1,28,4]]}
[null,"Skill 1"]
[null,"Average Handling Time (Seconds)",800]
[null,"Interval (Minutes)",60]
[null,"Required Service Level (%)",80]
[null,"Target Answer Time (Seconds)",120]
[null,"Shrinkage (%)",15]
[]
[null,"Skill 4"]
[null,"Average Handling Time (Seconds)",400]
[null,"Interval (Minutes)",60]
[null,"Required Service Level (%)",80]
[null,"Target Answer Time (Seconds)",30]
[null,"Shrinkage (%)",15]
[]
[null,"Skill 3"]
[null,"Average Handling Time (Seconds)",181.66666666666666]
[null,"Interval (Minutes)",60]
[null,"Required Service Level (%)",80]
[null,"Target Answer Time (Seconds)",120]
[null,"Shrinkage (%)",0]
[]
[null,"Skill 4"]
[null,"Average Handling Time (Seconds)",196.11111111111111]
[null,"Interval (Minutes)",30]
[null,"Required Service Level (%)",80]
[null,"Target Answer Time (Seconds)",120]
[null,"Shrinkage (%)",15]
[]
[null,"Skill 5"]
[null,"Average Handling Time (Seconds)",526.66666666666663]
[null,"Interval (Minutes)",60]
[null,"Required Service Level (%)",80]
[null,"Target Answer Time (Seconds)",120]
[null,"Shrinkage (%)",15]

{"sheet":"1","index":1,"n_rows":27,"n_cols":23,"rows_kept":27,"cut":false,"hidden":false,"merged":[[0,1,0,22],[1,2,1,4],[1,5,1,7],[1,8,1,10],[1,11,1,13],[1,14,1,16],[1,17,1,19],[1,20,1,22]]}
[null,"Skill 1"]
[null,null,"Monday",null,null,"Tuesday",null,null,"Wednesday",null,null,"Thursday",null,null,"Friday",null,null,"Saturday",null,null,"Sunday "]
[null,"Eastern Time","Calls","Need","Have","Calls","Need","Have","Calls","Need","Have","Calls","Need","Have","Calls","Need","Have","Calls","Need","Have","Calls","Need","Have"]
[null,"00:00:00",0,{"$f":"AgentsFTE(C4, Settings!$C$3, Settings!$C$2,Settings!$C$4/100,Settings!$C$5, Settings!$C$6/100)","v":0},null,0,{"$f":"AgentsFTE(F4, Settings!$C$3, Settings!$C$2,Settings!$C$4/100,Settings!$C$5, Settings!$C$6/100)","v":0},null,0,{"$f":"AgentsFTE(I4, Settings!$C$3, Settings!$C$2,Settings!$C$4/100,Settings!$C$5, Settings!$C$6/100)","v":0},null,0,{"$f":"AgentsFTE(L4, Settings!$C$3, Settings!$C$2,Settings!$C$4/100,Settings!$C$5, Settings!$C$6/100)","v":0},null,0,{"$f":"AgentsFTE(O4, Settings!$C$3, Settings!$C$2,Settings!$C$4/100,Settings!$C$5, Settings!$C$6/100)","v":0},null,0,{"$f":"AgentsFTE(R4, Settings!$C$3, Settings!$C$2,Settings!$C$4/100,Settings!$C$5, Settings!$C$6/100)","v":0},null,0,{"$f":"AgentsFTE(U4, Settings!$C$3, Settings!$C$2,Settings!$C$4/100,Settings!$C$5, Settings!$C$6/100)","v":0}]
[null,"01:00:00",0,{"$f":"AgentsFTE(C5, Settings!$C$3, Settings!$C$2,Settings!$C$4/100,Settings!$C$5, Settings!$C$6/100)","v":0},null,0,{"$f":"AgentsFTE(F5, Settings!$C$3, Settings!$C$2,Settings!$C$4/100,Settings!$C$5, Settings!$C$6/100)","v":0},null,0,{"$f":"AgentsFTE(I5, Settings!$C$3, Settings!$C$2,Settings!$C$4/100,Settings!$C$5, Settings!$C$6/100)","v":0},null,0,{"$f":"AgentsFTE(L5, Settings!$C$3, Settings!$C$2,Settings!$C$4/100,Settings!$C$5, Settings!$C$6/100)","v":0},null,0,{"$f":"AgentsFTE(O5, Settings!$C$3, Settings!$C$2,Settings!$C$4/100,Settings!$C$5, Settings!$C$6/100)","v":0},null,0,{"$f":"AgentsFTE(R5, Settings!$C$3, Settings!$C$2,Settings!$C$4/100,Settings!$C$5, Settings!$C$6/100)","v":0},null,0,{"$f":"AgentsFTE(U5, Settings!$C$3, Settings!$C$2,Settings!$C$4/100,Settings!$C$5, Settings!$C$6/100)","v":0}]
[null,"02:00:00",0,{"$f":"AgentsFTE(C6, Settings!$C$3, Settings!$C$2,Settings!$C$4/100,Settings!$C$5, Settings!$C$6/100)","v":0},null,0,{"$f":"AgentsFTE(F6, Settings!$C$3, Settings!$C$2,Settings!$C$4/100,Settings!$C$5, Settings!$C$6/100)","v":0},null,0,{"$f":"AgentsFTE(I6, Settings!$C$3, Settings!$C$2,Settings!$C$4/100,Settings!$C$5, Settings!$C$6/100)","v":0},null,0,{"$f":"AgentsFTE(L6, Settings!$C$3, Settings!$C$2,Settings!$C$4/100,Settings!$C$5, Settings!$C$6/100)","v":0},null,0,{"$f":"AgentsFTE(O6, Settings!$C$3, Settings!$C$2,Settings!$C$4/100,Settings!$C$5, Settings!$C$6/100)","v":0},null,0,{"$f":"AgentsFTE(R6, Settings!$C$3, Settings!$C$2,Settings!$C$4/100,Settings!$C$5, Settings!$C$6/100)","v":0},null,0,{"$f":"AgentsFTE(U6, Settings!$C$3, Settings!$C$2,Settings!$C$4/100,Settings!$C$5, Settings!$C$6/100)","v":0}]
[null,"03:00:00",0,{"$f":"AgentsFTE(C7, Settings!$C$3, Settings!$C$2,Settings!$C$4/100,Settings!$C$5, Settings!$C$6/100)","v":0},null,0,{"$f":"AgentsFTE(F7, Settings!$C$3, Settings!$C$2,Settings!$C$4/100,Settings!$C$5, Settings!$C$6/100)","v":0},null,0,{"$f":"AgentsFTE(I7, Settings!$C$3, Settings!$C$2,Settings!$C$4/100,Settings!$C$5, Settings!$C$6/100)","v":0},null,0,{"$f":"AgentsFTE(L7, Settings!$C$3, Settings!$C$2,Settings!$C$4/100,Settings!$C$5, Settings!$C$6/100)","v":0},null,0,{"$f":"AgentsFTE(O7, Settings!$C$3, Settings!$C$2,Settings!$C$4/100,Settings!$C$5, Settings!$C$6/100)","v":0},null,0,{"$f":"AgentsFTE(R7, Settings!$C$3, Settings!$C$2,Settings!$C$4/100,Settings!$C$5, Settings!$C$6/100)","v":0},null,0,{"$f":"AgentsFTE(U7, Settings!$C$3, Settings!$C$2,Settings!$C$4/100,Settings!$C$5, Settings!$C$6/100)","v":0}]
[null,"04:00:00",0,{"$f":"AgentsFTE(C8, Settings!$C$3, Settings!$C$2,Settings!$C$4/100,Settings!$C$5, Settings!$C$6/100)","v":0},null,0,{"$f":"AgentsFTE(F8, Settings!$C$3, Settings!$C$2,Settings!$C$4/100,Settings!$C$5, Settings!$C$6/100)","v":0},null,0,{"$f":"AgentsFTE(I8, Settings!$C$3, Settings!$C$2,Settings!$C$4/100,Settings!$C$5, Settings!$C$6/100)","v":0},null,0,{"$f":"AgentsFTE(L8, Settings!$C$3, Settings!$C$2,Settings!$C$4/100,Settings!$C$5, Settings!$C$6/100)","v":0},null,0,{"$f":"AgentsFTE(O8, Settings!$C$3, Settings!$C$2,Settings!$C$4/100,Settings!$C$5, Settings!$C$6/100)","v":0},null,0,{"$f":"AgentsFTE(R8, Settings!$C$3, Settings!$C$2,Settings!$C$4/100,Settings!$C$5, Settings!$C$6/100)","v":0},null,0,{"$f":"AgentsFTE(U8, Settings!$C$3, Settings!$C$2,Settings!$C$4/100,Settings!$C$5, Settings!$C$6/100)","v":0}]
[null,"05:00:00",15,{"$f":"AgentsFTE(C9, Settings!$C$3, Settings!$C$2,Settings!$C$4/100,Settings!$C$5, Settings!$C$6/100)","v":7},null,0,{"$f":"AgentsFTE(F9, Settings!$C$3, Settings!$C$2,Settings!$C$4/100,Settings!$C$5, Settings!$C$6/100)","v":0},null,0,{"$f":"AgentsFTE(I9, Settings!$C$3, Settings!$C$2,Settings!$C$4/100,Settings!$C$5, Settings!$C$6/100)","v":0},null,0,{"$f":"AgentsFTE(L9, Settings!$C$3, Settings!$C$2,Settings!$C$4/100,Settings!$C$5, Settings!$C$6/100)","v":0},null,0,{"$f":"AgentsFTE(O9, Settings!$C$3, Settings!$C$2,Settings!$C$4/100,Settings!$C$5, Settings!$C$6/100)","v":0},null,0,{"$f":"AgentsFTE(R9, Settings!$C$3, Settings!$C$2,Settings!$C$4/100,Settings!$C$5, Settings!$C$6/100)","v":0},null,0,{"$f":"AgentsFTE(U9, Settings!$C$3, Settings!$C$2,Settings!$C$4/100,Settings!$C$5, Settings!$C$6/100)","v":0}]
[null,"06:00:00",0,{"$f":"AgentsFTE(C10, Settings!$C$3, Settings!$C$2,Settings!$C$4/100,Settings!$C$5, Settings!$C$6/100)","v":0},null,0,{"$f":"AgentsFTE(F10, Settings!$C$3, Settings!$C$2,Settings!$C$4/100,Settings!$C$5, Settings!$C$6/100)","v":0},null,0,{"$f":"AgentsFTE(I10, Settings!$C$3, Settings!$C$2,Settings!$C$4/100,Settings!$C$5, Settings!$C$6/100)","v":0},null,0,{"$f":"AgentsFTE(L10, Settings!$C$3, Settings!$C$2,Settings!$C$4/100,Settings!$C$5, Settings!$C$6/100)","v":0},null,0,{"$f":"AgentsFTE(O10, Settings!$C$3, Settings!$C$2,Settings!$C$4/100,Settings!$C$5, Settings!$C$6/100)","v":0},null,0,{"$f":"AgentsFTE(R10, Settings!$C$3, Settings!$C$2,Settings!$C$4/100,Settings!$C$5, Settings!$C$6/100)","v":0},null,0,{"$f":"AgentsFTE(U10, Settings!$C$3, Settings!$C$2,Settings!$C$4/100,Settings!$C$5, Settings!$C$6/100)","v":0}]
[null,"07:00:00",0,{"$f":"AgentsFTE(C11, Settings!$C$3, Settings!$C$2,Settings!$C$4/100,Settings!$C$5, Settings!$C$6/100)","v":0},null,0,{"$f":"AgentsFTE(F11, Settings!$C$3, Settings!$C$2,Settings!$C$4/100,Settings!$C$5, Settings!$C$6/100)","v":0},null,0,{"$f":"AgentsFTE(I11, Settings!$C$3, Settings!$C$2,Settings!$C$4/100,Settings!$C$5, Settings!$C$6/100)","v":0},null,0,{"$f":"AgentsFTE(L11, Settings!$C$3, Settings!$C$2,Settings!$C$4/100,Settings!$C$5, Settings!$C$6/100)","v":0},null,0,{"$f":"AgentsFTE(O11, Settings!$C$3, Settings!$C$2,Settings!$C$4/100,Settings!$C$5, Settings!$C$6/100)","v":0},null,0,{"$f":"AgentsFTE(R11, Settings!$C$3, Settings!$C$2,Settings!$C$4/100,Settings!$C$5, Settings!$C$6/100)","v":0},null,0,{"$f":"AgentsFTE(U11, Settings!$C$3, Settings!$C$2,Settings!$C$4/100,Settings!$C$5, Settings!$C$6/100)","v":0}]
[null,"08:00:00",10,{"$f":"AgentsFTE(C12, Settings!$C$3, Settings!$C$2,Settings!$C$4/100,Settings!$C$5, Settings!$C$6/100)","v":5},null,0,{"$f":"AgentsFTE(F12, Settings!$C$3, Settings!$C$2,Settings!$C$4/100,Settings!$C$5, Settings!$C$6/100)","v":0},null,0,{"$f":"AgentsFTE(I12, Settings!$C$3, Settings!$C$2,Settings!$C$4/100,Settings!$C$5, Settings!$C$6/100)","v":0},null,0,{"$f":"AgentsFTE(L12, Settings!$C$3, Settings!$C$2,Settings!$C$4/100,Settings!$C$5, Settings!$C$6/100)","v":0},null,0,{"$f":"AgentsFTE(O12, Settings!$C$3, Settings!$C$2,Settings!$C$4/100,Settings!$C$5, Settings!$C$6/100)","v":0},null,0,{"$f":"AgentsFTE(R12, Settings!$C$3, Settings!$C$2,Settings!$C$4/100,Settings!$C$5, Settings!$C$6/100)","v":0},null,0,{"$f":"AgentsFTE(U12, Settings!$C$3, Settings!$C$2,Settings!$C$4/100,Settings!$C$5, Settings!$C$6/100)","v":0}]
[null,"09:00:00",15,{"$f":"AgentsFTE(C13, Settings!$C$3, Settings!$C$2,Settings!$C$4/100,Settings!$C$5, Settings!$C$6/100)","v":7},null,0,{"$f":"AgentsFTE(F13, Settings!$C$3, Settings!$C$2,Settings!$C$4/100,Settings!$C$5, Settings!$C$6/100)","v":0},null,0,{"$f":"AgentsFTE(I13, Settings!$C$3, Settings!$C$2,Settings!$C$4/100,Settings!$C$5, Settings!$C$6/100)","v":0},null,0,{"$f":"AgentsFTE(L13, Settings!$C$3, Settings!$C$2,Settings!$C$4/100,Settings!$C$5, Settings!$C$6/100)","v":0},null,0,{"$f":"AgentsFTE(O13, Settings!$C$3, Settings!$C$2,Settings!$C$4/100,Settings!$C$5, Settings!$C$6/100)","v":0},null,0,{"$f":"AgentsFTE(R13, Settings!$C$3, Settings!$C$2,Settings!$C$4/100,Settings!$C$5, Settings!$C$6/100)","v":0},null,0,{"$f":"AgentsFTE(U13, Settings!$C$3, Settings!$C$2,Settings!$C$4/100,Settings!$C$5, Settings!$C$6/100)","v":0}]
[null,"10:00:00",22,{"$f":"AgentsFTE(C14, Settings!$C$3, Settings!$C$2,Settings!$C$4/100,Settings!$C$5, Settings!$C$6/100)","v":9},null,0,{"$f":"AgentsFTE(F14, Settings!$C$3, Settings!$C$2,Settings!$C$4/100,Settings!$C$5, Settings!$C$6/100)","v":0},null,0,{"$f":"AgentsFTE(I14, Settings!$C$3, Settings!$C$2,Settings!$C$4/100,Settings!$C$5, Settings!$C$6/100)","v":0},null,0,{"$f":"AgentsFTE(L14, Settings!$C$3, Settings!$C$2,Settings!$C$4/100,Settings!$C$5, Settings!$C$6/100)","v":0},null,0,{"$f":"AgentsFTE(O14, Settings!$C$3, Settings!$C$2,Settings!$C$4/100,Settings!$C$5, Settings!$C$6/100)","v":0},null,0,{"$f":"AgentsFTE(R14, Settings!$C$3, Settings!$C$2,Settings!$C$4/100,Settings!$C$5, Settings!$C$6/100)","v":0},null,0,{"$f":"AgentsFTE(U14, Settings!$C$3, Settings!$C$2,Settings!$C$4/100,Settings!$C$5, Settings!$C$6/100)","v":0}]
[null,"11:00:00",26,{"$f":"AgentsFTE(C15, Settings!$C$3, Settings!$C$2,Settings!$C$4/100,Settings!$C$5, Settings!$C$6/100)","v":11},null,0,{"$f":"AgentsFTE(F15, Settings!$C$3, Settings!$C$2,Settings!$C$4/100,Settings!$C$5, Settings!$C$6/100)","v":0},null,0,{"$f":"AgentsFTE(I15, Settings!$C$3, Settings!$C$2,Settings!$C$4/100,Settings!$C$5, Settings!$C$6/100)","v":0},null,0,{"$f":"AgentsFTE(L15, Settings!$C$3, Settings!$C$2,Settings!$C$4/100,Settings!$C$5, Settings!$C$6/100)","v":0},null,0,{"$f":"AgentsFTE(O15, Settings!$C$3, Settings!$C$2,Settings!$C$4/100,Settings!$C$5, Settings!$C$6/100)","v":0},null,0,{"$f":"AgentsFTE(R15, Settings!$C$3, Settings!$C$2,Settings!$C$4/100,Settings!$C$5, Settings!$C$6/100)","v":0},null,0,{"$f":"AgentsFTE(U15, Settings!$C$3, Settings!$C$2,Settings!$C$4/100,Settings!$C$5, Settings!$C$6/100)","v":0}]
[null,"12:00:00",30,{"$f":"AgentsFTE(C16, Settings!$C$3, Settings!$C$2,Settings!$C$4/100,Settings!$C$5, Settings!$C$6/100)","v":12},null,0,{"$f":"AgentsFTE(F16, Settings!$C$3, Settings!$C$2,Settings!$C$4/100,Settings!$C$5, Settings!$C$6/100)","v":0},null,0,{"$f":"AgentsFTE(I16, Settings!$C$3, Settings!$C$2,Settings!$C$4/100,Settings!$C$5, Settings!$C$6/100)","v":0},null,0,{"$f":"AgentsFTE(L16, Settings!$C$3, Settings!$C$2,Settings!$C$4/100,Settings!$C$5, Settings!$C$6/100)","v":0},null,0,{"$f":"AgentsFTE(O16, Settings!$C$3, Settings!$C$2,Settings!$C$4/100,Settings!$C$5, Settings!$C$6/100)","v":0},null,0,{"$f":"AgentsFTE(R16, Settings!$C$3, Settings!$C$2,Settings!$C$4/100,Settings!$C$5, Settings!$C$6/100)","v":0},null,0,{"$f":"AgentsFTE(U16, Settings!$C$3, Settings!$C$2,Settings!$C$4/100,Settings!$C$5, Settings!$C$6/100)","v":0}]
[null,"13:00:00",35,{"$f":"AgentsFTE(C17, Settings!$C$3, Settings!$C$2,Settings!$C$4/100,Settings!$C$5, Settings!$C$6/100)","v":13},null,0,{"$f":"AgentsFTE(F17, Settings!$C$3, Settings!$C$2,Settings!$C$4/100,Settings!$C$5, Settings!$C$6/100)","v":0},null,0,{"$f":"AgentsFTE(I17, Settings!$C$3, Settings!$C$2,Settings!$C$4/100,Settings!$C$5, Settings!$C$6/100)","v":0},null,0,{"$f":"AgentsFTE(L17, Settings!$C$3, Settings!$C$2,Settings!$C$4/100,Settings!$C$5, Settings!$C$6/100)","v":0},null,0,{"$f":"AgentsFTE(O17, Settings!$C$3, Settings!$C$2,Settings!$C$4/100,Settings!$C$5, Settings!$C$6/100)","v":0},null,0,{"$f":"AgentsFTE(R17, Settings!$C$3, Settings!$C$2,Settings!$C$4/100,Settings!$C$5, Settings!$C$6/100)","v":0},null,0,{"$f":"AgentsFTE(U17, Settings!$C$3, Settings!$C$2,Settings!$C$4/100,Settings!$C$5, Settings!$C$6/100)","v":0}]
[null,"14:00:00",25,{"$f":"AgentsFTE(C18, Settings!$C$3, Settings!$C$2,Settings!$C$4/100,Settings!$C$5, Settings!$C$6/100)","v":9},null,0,{"$f":"AgentsFTE(F18, Settings!$C$3, Settings!$C$2,Settings!$C$4/100,Settings!$C$5, Settings!$C$6/100)","v":0},null,0,{"$f":"AgentsFTE(I18, Settings!$C$3, Settings!$C$2,Settings!$C$4/100,Settings!$C$5, Settings!$C$6/100)","v":0},null,0,{"$f":"AgentsFTE(L18, Settings!$C$3, Settings!$C$2,Settings!$C$4/100,Settings!$C$5, Settings!$C$6/100)","v":0},null,0,{"$f":"AgentsFTE(O18, Settings!$C$3, Settings!$C$2,Settings!$C$4/100,Settings!$C$5, Settings!$C$6/100)","v":0},null,0,{"$f":"AgentsFTE(R18, Settings!$C$3, Settings!$C$2,Settings!$C$4/100,Settings!$C$5, Settings!$C$6/100)","v":0},null,0,{"$f":"AgentsFTE(U18, Settings!$C$3, Settings!$C$2,Settings!$C$4/100,Settings!$C$5, Settings!$C$6/100)","v":0}]
[null,"15:00:00",20,{"$f":"AgentsFTE(C19, Settings!$C$3, Settings!$C$2,Settings!$C$4/100,Settings!$C$5, Settings!$C$6/100)","v":8},null,0,{"$f":"AgentsFTE(F19, Settings!$C$3, Settings!$C$2,Settings!$C$4/100,Settings!$C$5, Settings!$C$6/100)","v":0},null,0,{"$f":"AgentsFTE(I19, Settings!$C$3, Settings!$C$2,Settings!$C$4/100,Settings!$C$5, Settings!$C$6/100)","v":0},null,0,{"$f":"AgentsFTE(L19, Settings!$C$3, Settings!$C$2,Settings!$C$4/100,Settings!$C$5, Settings!$C$6/100)","v":0},null,0,{"$f":"AgentsFTE(O19, Settings!$C$3, Settings!$C$2,Settings!$C$4/100,Settings!$C$5, Settings!$C$6/100)","v":0},null,0,{"$f":"AgentsFTE(R19, Settings!$C$3, Settings!$C$2,Settings!$C$4/100,Settings!$C$5, Settings!$C$6/100)","v":0},null,0,{"$f":"AgentsFTE(U19, Settings!$C$3, Settings!$C$2,Settings!$C$4/100,Settings!$C$5, Settings!$C$6/100)","v":0}]
[null,"16:00:00",20,{"$f":"AgentsFTE(C20, Settings!$C$3, Settings!$C$2,Settings!$C$4/100,Settings!$C$5, Settings!$C$6/100)","v":8},null,0,{"$f":"AgentsFTE(F20, Settings!$C$3, Settings!$C$2,Settings!$C$4/100,Settings!$C$5, Settings!$C$6/100)","v":0},null,0,{"$f":"AgentsFTE(I20, Settings!$C$3, Settings!$C$2,Settings!$C$4/100,Settings!$C$5, Settings!$C$6/100)","v":0},null,0,{"$f":"AgentsFTE(L20, Settings!$C$3, Settings!$C$2,Settings!$C$4/100,Settings!$C$5, Settings!$C$6/100)","v":0},null,0,{"$f":"AgentsFTE(O20, Settings!$C$3, Settings!$C$2,Settings!$C$4/100,Settings!$C$5, Settings!$C$6/100)","v":0},null,0,{"$f":"AgentsFTE(R20, Settings!$C$3, Settings!$C$2,Settings!$C$4/100,Settings!$C$5, Settings!$C$6/100)","v":0},null,0,{"$f":"AgentsFTE(U20, Settings!$C$3, Settings!$C$2,Settings!$C$4/100,Settings!$C$5, Settings!$C$6/100)","v":0}]
[null,"17:00:00",19,{"$f":"AgentsFTE(C21, Settings!$C$3, Settings!$C$2,Settings!$C$4/100,Settings!$C$5, Settings!$C$6/100)","v":8},null,0,{"$f":"AgentsFTE(F21, Settings!$C$3, Settings!$C$2,Settings!$C$4/100,Settings!$C$5, Settings!$C$6/100)","v":0},null,0,{"$f":"AgentsFTE(I21, Settings!$C$3, Settings!$C$2,Settings!$C$4/100,Settings!$C$5, Settings!$C$6/100)","v":0},null,0,{"$f":"AgentsFTE(L21, Settings!$C$3, Settings!$C$2,Settings!$C$4/100,Settings!$C$5, Settings!$C$6/100)","v":0},null,0,{"$f":"AgentsFTE(O21, Settings!$C$3, Settings!$C$2,Settings!$C$4/100,Settings!$C$5, Settings!$C$6/100)","v":0},null,0,{"$f":"AgentsFTE(R21, Settings!$C$3, Settings!$C$2,Settings!$C$4/100,Settings!$C$5, Settings!$C$6/100)","v":0},null,0,{"$f":"AgentsFTE(U21, Settings!$C$3, Settings!$C$2,Settings!$C$4/100,Settings!$C$5, Settings!$C$6/100)","v":0}]
[null,"18:00:00",18,{"$f":"AgentsFTE(C22, Settings!$C$3, Settings!$C$2,Settings!$C$4/100,Settings!$C$5, Settings!$C$6/100)","v":8},null,0,{"$f":"AgentsFTE(F22, Settings!$C$3, Settings!$C$2,Settings!$C$4/100,Settings!$C$5, Settings!$C$6/100)","v":0},null,0,{"$f":"AgentsFTE(I22, Settings!$C$3, Settings!$C$2,Settings!$C$4/100,Settings!$C$5, Settings!$C$6/100)","v":0},null,0,{"$f":"AgentsFTE(L22, Settings!$C$3, Settings!$C$2,Settings!$C$4/100,Settings!$C$5, Settings!$C$6/100)","v":0},null,0,{"$f":"AgentsFTE(O22, Settings!$C$3, Settings!$C$2,Settings!$C$4/100,Settings!$C$5, Settings!$C$6/100)","v":0},null,0,{"$f":"AgentsFTE(R22, Settings!$C$3, Settings!$C$2,Settings!$C$4/100,Settings!$C$5, Settings!$C$6/100)","v":0},null,0,{"$f":"AgentsFTE(U22, Settings!$C$3, Settings!$C$2,Settings!$C$4/100,Settings!$C$5, Settings!$C$6/100)","v":0}]
[null,"19:00:00",16,{"$f":"AgentsFTE(C23, Settings!$C$3, Settings!$C$2,Settings!$C$4/100,Settings!$C$5, Settings!$C$6/100)","v":7},null,0,{"$f":"AgentsFTE(F23, Settings!$C$3, Settings!$C$2,Settings!$C$4/100,Settings!$C$5, Settings!$C$6/100)","v":0},null,0,{"$f":"AgentsFTE(I23, Settings!$C$3, Settings!$C$2,Settings!$C$4/100,Settings!$C$5, Settings!$C$6/100)","v":0},null,0,{"$f":"AgentsFTE(L23, Settings!$C$3, Settings!$C$2,Settings!$C$4/100,Settings!$C$5, Settings!$C$6/100)","v":0},null,0,{"$f":"AgentsFTE(O23, Settings!$C$3, Settings!$C$2,Settings!$C$4/100,Settings!$C$5, Settings!$C$6/100)","v":0},null,0,{"$f":"AgentsFTE(R23, Settings!$C$3, Settings!$C$2,Settings!$C$4/100,Settings!$C$5, Settings!$C$6/100)","v":0},null,0,{"$f":"AgentsFTE(U23, Settings!$C$3, Settings!$C$2,Settings!$C$4/100,Settings!$C$5, Settings!$C$6/100)","v":0}]
[null,"20:00:00",15,{"$f":"AgentsFTE(C24, Settings!$C$3, Settings!$C$2,Settings!$C$4/100,Settings!$C$5, Settings!$C$6/100)","v":7},null,0,{"$f":"AgentsFTE(F24, Settings!$C$3, Settings!$C$2,Settings!$C$4/100,Settings!$C$5, Settings!$C$6/100)","v":0},null,0,{"$f":"AgentsFTE(I24, Settings!$C$3, Settings!$C$2,Settings!$C$4/100,Settings!$C$5, Settings!$C$6/100)","v":0},null,0,{"$f":"AgentsFTE(L24, Settings!$C$3, Settings!$C$2,Settings!$C$4/100,Settings!$C$5, Settings!$C$6/100)","v":0},null,0,{"$f":"AgentsFTE(O24, Settings!$C$3, Settings!$C$2,Settings!$C$4/100,Settings!$C$5, Settings!$C$6/100)","v":0},null,0,{"$f":"AgentsFTE(R24, Settings!$C$3, Settings!$C$2,Settings!$C$4/100,Settings!$C$5, Settings!$C$6/100)","v":0},null,0,{"$f":"AgentsFTE(U24, Settings!$C$3, Settings!$C$2,Settings!$C$4/100,Settings!$C$5, Settings!$C$6/100)","v":0}]
[null,"21:00:00",0,{"$f":"AgentsFTE(C25, Settings!$C$3, Settings!$C$2,Settings!$C$4/100,Settings!$C$5, Settings!$C$6/100)","v":0},null,0,{"$f":"AgentsFTE(F25, Settings!$C$3, Settings!$C$2,Settings!$C$4/100,Settings!$C$5, Settings!$C$6/100)","v":0},null,0,{"$f":"AgentsFTE(I25, Settings!$C$3, Settings!$C$2,Settings!$C$4/100,Settings!$C$5, Settings!$C$6/100)","v":0},null,0,{"$f":"AgentsFTE(L25, Settings!$C$3, Settings!$C$2,Settings!$C$4/100,Settings!$C$5, Settings!$C$6/100)","v":0},null,0,{"$f":"AgentsFTE(O25, Settings!$C$3, Settings!$C$2,Settings!$C$4/100,Settings!$C$5, Settings!$C$6/100)","v":0},null,0,{"$f":"AgentsFTE(R25, Settings!$C$3, Settings!$C$2,Settings!$C$4/100,Settings!$C$5, Settings!$C$6/100)","v":0},null,0,{"$f":"AgentsFTE(U25, Settings!$C$3, Settings!$C$2,Settings!$C$4/100,Settings!$C$5, Settings!$C$6/100)","v":0}]
[null,"22:00:00",0,{"$f":"AgentsFTE(C26, Settings!$C$3, Settings!$C$2,Settings!$C$4/100,Settings!$C$5, Settings!$C$6/100)","v":0},null,0,{"$f":"AgentsFTE(F26, Settings!$C$3, Settings!$C$2,Settings!$C$4/100,Settings!$C$5, Settings!$C$6/100)","v":0},null,0,{"$f":"AgentsFTE(I26, Settings!$C$3, Settings!$C$2,Settings!$C$4/100,Settings!$C$5, Settings!$C$6/100)","v":0},null,0,{"$f":"AgentsFTE(L26, Settings!$C$3, Settings!$C$2,Settings!$C$4/100,Settings!$C$5, Settings!$C$6/100)","v":0},null,0,{"$f":"AgentsFTE(O26, Settings!$C$3, Settings!$C$2,Settings!$C$4/100,Settings!$C$5, Settings!$C$6/100)","v":0},null,0,{"$f":"AgentsFTE(R26, Settings!$C$3, Settings!$C$2,Settings!$C$4/100,Settings!$C$5, Settings!$C$6/100)","v":0},null,0,{"$f":"AgentsFTE(U26, Settings!$C$3, Settings!$C$2,Settings!$C$4/100,Settings!$C$5, Settings!$C$6/100)","v":0}]
[null,"23:00:00",0,{"$f":"AgentsFTE(C27, Settings!$C$3, Settings!$C$2,Settings!$C$4/100,Settings!$C$5, Settings!$C$6/100)","v":0},null,0,{"$f":"AgentsFTE(F27, Settings!$C$3, Settings!$C$2,Settings!$C$4/100,Settings!$C$5, Settings!$C$6/100)","v":0},null,0,{"$f":"AgentsFTE(I27, Settings!$C$3, Settings!$C$2,Settings!$C$4/100,Settings!$C$5, Settings!$C$6/100)","v":0},null,0,{"$f":"AgentsFTE(L27, Settings!$C$3, Settings!$C$2,Settings!$C$4/100,Settings!$C$5, Settings!$C$6/100)","v":0},null,0,{"$f":"AgentsFTE(O27, Settings!$C$3, Settings!$C$2,Settings!$C$4/100,Settings!$C$5, Settings!$C$6/100)","v":0},null,0,{"$f":"AgentsFTE(R27, Settings!$C$3, Settings!$C$2,Settings!$C$4/100,Settings!$C$5, Settings!$C$6/100)","v":0},null,0,{"$f":"AgentsFTE(U27, Settings!$C$3, Settings!$C$2,Settings!$C$4/100,Settings!$C$5, Settings!$C$6/100)","v":0}]

{"sheet":"2","index":2,"n_rows":27,"n_cols":23,"rows_kept":27,"cut":false,"hidden":false,"merged":[[1,20,1,22],[0,1,0,22],[1,2,1,4],[1,5,1,7],[1,8,1,10],[1,11,1,13],[1,14,1,16],[1,17,1,19]]}
[null,"Skill 2"]
[null,null,"Monday",null,null,"Tuesday",null,null,"Wednesday",null,null,"Thursday",null,null,"Friday",null,null,"Saturday",null,null,"Sunday "]
[null,"Eastern Time","Calls","Need","Have","Calls","Need","Have","Calls","Need","Have","Calls","Need","Have","Calls","Need","Have","Calls","Need","Have","Calls","Need","Have"]
[null,"00:00:00",0,{"$f":"AgentsFTE(C4, Settings!$C$10, Settings!$C$9,Settings!$C$11/100,Settings!$C$12, Settings!$C$13/100)","v":0},null,0,{"$f":"AgentsFTE(F4, Settings!$C$10, Settings!$C$9,Settings!$C$11/100,Settings!$C$12, Settings!$C$13/100)","v":0},null,0,{"$f":"AgentsFTE(I4, Settings!$C$10, Settings!$C$9,Settings!$C$11/100,Settings!$C$12, Settings!$C$13/100)","v":0},null,0,{"$f":"AgentsFTE(L4, Settings!$C$10, Settings!$C$9,Settings!$C$11/100,Settings!$C$12, Settings!$C$13/100)","v":0},null,0,{"$f":"AgentsFTE(O4, Settings!$C$10, Settings!$C$9,Settings!$C$11/100,Settings!$C$12, Settings!$C$13/100)","v":0},null,0,{"$f":"AgentsFTE(R4, Settings!$C$10, Settings!$C$9,Settings!$C$11/100,Settings!$C$12, Settings!$C$13/100)","v":0},null,0,{"$f":"AgentsFTE(U4, Settings!$C$10, Settings!$C$9,Settings!$C$11/100,Settings!$C$12, Settings!$C$13/100)","v":0}]
[null,"01:00:00",0,{"$f":"AgentsFTE(C5, Settings!$C$10, Settings!$C$9,Settings!$C$11/100,Settings!$C$12, Settings!$C$13/100)","v":0},null,0,{"$f":"AgentsFTE(F5, Settings!$C$10, Settings!$C$9,Settings!$C$11/100,Settings!$C$12, Settings!$C$13/100)","v":0},null,0,{"$f":"AgentsFTE(I5, Settings!$C$10, Settings!$C$9,Settings!$C$11/100,Settings!$C$12, Settings!$C$13/100)","v":0},null,0,{"$f":"AgentsFTE(L5, Settings!$C$10, Settings!$C$9,Settings!$C$11/100,Settings!$C$12, Settings!$C$13/100)","v":0},null,0,{"$f":"AgentsFTE(O5, Settings!$C$10, Settings!$C$9,Settings!$C$11/100,Settings!$C$12, Settings!$C$13/100)","v":0},null,0,{"$f":"AgentsFTE(R5, Settings!$C$10, Settings!$C$9,Settings!$C$11/100,Settings!$C$12, Settings!$C$13/100)","v":0},null,0,{"$f":"AgentsFTE(U5, Settings!$C$10, Settings!$C$9,Settings!$C$11/100,Settings!$C$12, Settings!$C$13/100)","v":0}]
[null,"02:00:00",0,{"$f":"AgentsFTE(C6, Settings!$C$10, Settings!$C$9,Settings!$C$11/100,Settings!$C$12, Settings!$C$13/100)","v":0},null,0,{"$f":"AgentsFTE(F6, Settings!$C$10, Settings!$C$9,Settings!$C$11/100,Settings!$C$12, Settings!$C$13/100)","v":0},null,0,{"$f":"AgentsFTE(I6, Settings!$C$10, Settings!$C$9,Settings!$C$11/100,Settings!$C$12, Settings!$C$13/100)","v":0},null,0,{"$f":"AgentsFTE(L6, Settings!$C$10, Settings!$C$9,Settings!$C$11/100,Settings!$C$12, Settings!$C$13/100)","v":0},null,0,{"$f":"AgentsFTE(O6, Settings!$C$10, Settings!$C$9,Settings!$C$11/100,Settings!$C$12, Settings!$C$13/100)","v":0},null,0,{"$f":"AgentsFTE(R6, Settings!$C$10, Settings!$C$9,Settings!$C$11/100,Settings!$C$12, Settings!$C$13/100)","v":0},null,0,{"$f":"AgentsFTE(U6, Settings!$C$10, Settings!$C$9,Settings!$C$11/100,Settings!$C$12, Settings!$C$13/100)","v":0}]
[null,"03:00:00",0,{"$f":"AgentsFTE(C7, Settings!$C$10, Settings!$C$9,Settings!$C$11/100,Settings!$C$12, Settings!$C$13/100)","v":0},null,0,{"$f":"AgentsFTE(F7, Settings!$C$10, Settings!$C$9,Settings!$C$11/100,Settings!$C$12, Settings!$C$13/100)","v":0},null,0,{"$f":"AgentsFTE(I7, Settings!$C$10, Settings!$C$9,Settings!$C$11/100,Settings!$C$12, Settings!$C$13/100)","v":0},null,0,{"$f":"AgentsFTE(L7, Settings!$C$10, Settings!$C$9,Settings!$C$11/100,Settings!$C$12, Settings!$C$13/100)","v":0},null,0,{"$f":"AgentsFTE(O7, Settings!$C$10, Settings!$C$9,Settings!$C$11/100,Settings!$C$12, Settings!$C$13/100)","v":0},null,0,{"$f":"AgentsFTE(R7, Settings!$C$10, Settings!$C$9,Settings!$C$11/100,Settings!$C$12, Settings!$C$13/100)","v":0},null,0,{"$f":"AgentsFTE(U7, Settings!$C$10, Settings!$C$9,Settings!$C$11/100,Settings!$C$12, Settings!$C$13/100)","v":0}]
[null,"04:00:00",0,{"$f":"AgentsFTE(C8, Settings!$C$10, Settings!$C$9,Settings!$C$11/100,Settings!$C$12, Settings!$C$13/100)","v":0},null,0,{"$f":"AgentsFTE(F8, Settings!$C$10, Settings!$C$9,Settings!$C$11/100,Settings!$C$12, Settings!$C$13/100)","v":0},null,0,{"$f":"AgentsFTE(I8, Settings!$C$10, Settings!$C$9,Settings!$C$11/100,Settings!$C$12, Settings!$C$13/100)","v":0},null,0,{"$f":"AgentsFTE(L8, Settings!$C$10, Settings!$C$9,Settings!$C$11/100,Settings!$C$12, Settings!$C$13/100)","v":0},null,0,{"$f":"AgentsFTE(O8, Settings!$C$10, Settings!$C$9,Settings!$C$11/100,Settings!$C$12, Settings!$C$13/100)","v":0},null,0,{"$f":"AgentsFTE(R8, Settings!$C$10, Settings!$C$9,Settings!$C$11/100,Settings!$C$12, Settings!$C$13/100)","v":0},null,0,{"$f":"AgentsFTE(U8, Settings!$C$10, Settings!$C$9,Settings!$C$11/100,Settings!$C$12, Settings!$C$13/100)","v":0}]
[null,"05:00:00",0,{"$f":"AgentsFTE(C9, Settings!$C$10, Settings!$C$9,Settings!$C$11/100,Settings!$C$12, Settings!$C$13/100)","v":0},null,0,{"$f":"AgentsFTE(F9, Settings!$C$10, Settings!$C$9,Settings!$C$11/100,Settings!$C$12, Settings!$C$13/100)","v":0},null,0,{"$f":"AgentsFTE(I9, Settings!$C$10, Settings!$C$9,Settings!$C$11/100,Settings!$C$12, Settings!$C$13/100)","v":0},null,0,{"$f":"AgentsFTE(L9, Settings!$C$10, Settings!$C$9,Settings!$C$11/100,Settings!$C$12, Settings!$C$13/100)","v":0},null,0,{"$f":"AgentsFTE(O9, Settings!$C$10, Settings!$C$9,Settings!$C$11/100,Settings!$C$12, Settings!$C$13/100)","v":0},null,0,{"$f":"AgentsFTE(R9, Settings!$C$10, Settings!$C$9,Settings!$C$11/100,Settings!$C$12, Settings!$C$13/100)","v":0},null,0,{"$f":"AgentsFTE(U9, Settings!$C$10, Settings!$C$9,Settings!$C$11/100,Settings!$C$12, Settings!$C$13/100)","v":0}]
[null,"06:00:00",0,{"$f":"AgentsFTE(C10, Settings!$C$10, Settings!$C$9,Settings!$C$11/100,Settings!$C$12, Settings!$C$13/100)","v":0},null,0,{"$f":"AgentsFTE(F10, Settings!$C$10, Settings!$C$9,Settings!$C$11/100,Settings!$C$12, Settings!$C$13/100)","v":0},null,0,{"$f":"AgentsFTE(I10, Settings!$C$10, Settings!$C$9,Settings!$C$11/100,Settings!$C$12, Settings!$C$13/100)","v":0},null,0,{"$f":"AgentsFTE(L10, Settings!$C$10, Settings!$C$9,Settings!$C$11/100,Settings!$C$12, Settings!$C$13/100)","v":0},null,0,{"$f":"AgentsFTE(O10, Settings!$C$10, Settings!$C$9,Settings!$C$11/100,Settings!$C$12, Settings!$C$13/100)","v":0},null,0,{"$f":"AgentsFTE(R10, Settings!$C$10, Settings!$C$9,Settings!$C$11/100,Settings!$C$12, Settings!$C$13/100)","v":0},null,0,{"$f":"AgentsFTE(U10, Settings!$C$10, Settings!$C$9,Settings!$C$11/100,Settings!$C$12, Settings!$C$13/100)","v":0}]
[null,"07:00:00",0,{"$f":"AgentsFTE(C11, Settings!$C$10, Settings!$C$9,Settings!$C$11/100,Settings!$C$12, Settings!$C$13/100)","v":0},null,0,{"$f":"AgentsFTE(F11, Settings!$C$10, Settings!$C$9,Settings!$C$11/100,Settings!$C$12, Settings!$C$13/100)","v":0},null,0,{"$f":"AgentsFTE(I11, Settings!$C$10, Settings!$C$9,Settings!$C$11/100,Settings!$C$12, Settings!$C$13/100)","v":0},null,0,{"$f":"AgentsFTE(L11, Settings!$C$10, Settings!$C$9,Settings!$C$11/100,Settings!$C$12, Settings!$C$13/100)","v":0},null,0,{"$f":"AgentsFTE(O11, Settings!$C$10, Settings!$C$9,Settings!$C$11/100,Settings!$C$12, Settings!$C$13/100)","v":0},null,0,{"$f":"AgentsFTE(R11, Settings!$C$10, Settings!$C$9,Settings!$C$11/100,Settings!$C$12, Settings!$C$13/100)","v":0},null,0,{"$f":"AgentsFTE(U11, Settings!$C$10, Settings!$C$9,Settings!$C$11/100,Settings!$C$12, Settings!$C$13/100)","v":0}]
[null,"08:00:00",0,{"$f":"AgentsFTE(C12, Settings!$C$10, Settings!$C$9,Settings!$C$11/100,Settings!$C$12, Settings!$C$13/100)","v":0},null,0,{"$f":"AgentsFTE(F12, Settings!$C$10, Settings!$C$9,Settings!$C$11/100,Settings!$C$12, Settings!$C$13/100)","v":0},null,0,{"$f":"AgentsFTE(I12, Settings!$C$10, Settings!$C$9,Settings!$C$11/100,Settings!$C$12, Settings!$C$13/100)","v":0},null,0,{"$f":"AgentsFTE(L12, Settings!$C$10, Settings!$C$9,Settings!$C$11/100,Settings!$C$12, Settings!$C$13/100)","v":0},null,0,{"$f":"AgentsFTE(O12, Settings!$C$10, Settings!$C$9,Settings!$C$11/100,Settings!$C$12, Settings!$C$13/100)","v":0},null,0,{"$f":"AgentsFTE(R12, Settings!$C$10, Settings!$C$9,Settings!$C$11/100,Settings!$C$12, Settings!$C$13/100)","v":0},null,0,{"$f":"AgentsFTE(U12, Settings!$C$10, Settings!$C$9,Settings!$C$11/100,Settings!$C$12, Settings!$C$13/100)","v":0}]
[null,"09:00:00",0,{"$f":"AgentsFTE(C13, Settings!$C$10, Settings!$C$9,Settings!$C$11/100,Settings!$C$12, Settings!$C$13/100)","v":0},null,0,{"$f":"AgentsFTE(F13, Settings!$C$10, Settings!$C$9,Settings!$C$11/100,Settings!$C$12, Settings!$C$13/100)","v":0},null,0,{"$f":"AgentsFTE(I13, Settings!$C$10, Settings!$C$9,Settings!$C$11/100,Settings!$C$12, Settings!$C$13/100)","v":0},null,0,{"$f":"AgentsFTE(L13, Settings!$C$10, Settings!$C$9,Settings!$C$11/100,Settings!$C$12, Settings!$C$13/100)","v":0},null,0,{"$f":"AgentsFTE(O13, Settings!$C$10, Settings!$C$9,Settings!$C$11/100,Settings!$C$12, Settings!$C$13/100)","v":0},null,0,{"$f":"AgentsFTE(R13, Settings!$C$10, Settings!$C$9,Settings!$C$11/100,Settings!$C$12, Settings!$C$13/100)","v":0},null,0,{"$f":"AgentsFTE(U13, Settings!$C$10, Settings!$C$9,Settings!$C$11/100,Settings!$C$12, Settings!$C$13/100)","v":0}]
[null,"10:00:00",0,{"$f":"AgentsFTE(C14, Settings!$C$10, Settings!$C$9,Settings!$C$11/100,Settings!$C$12, Settings!$C$13/100)","v":0},null,0,{"$f":"AgentsFTE(F14, Settings!$C$10, Settings!$C$9,Settings!$C$11/100,Settings!$C$12, Settings!$C$13/100)","v":0},null,0,{"$f":"AgentsFTE(I14, Settings!$C$10, Settings!$C$9,Settings!$C$11/100,Settings!$C$12, Settings!$C$13/100)","v":0},null,0,{"$f":"AgentsFTE(L14, Settings!$C$10, Settings!$C$9,Settings!$C$11/100,Settings!$C$12, Settings!$C$13/100)","v":0},null,0,{"$f":"AgentsFTE(O14, Settings!$C$10, Settings!$C$9,Settings!$C$11/100,Settings!$C$12, Settings!$C$13/100)","v":0},null,0,{"$f":"AgentsFTE(R14, Settings!$C$10, Settings!$C$9,Settings!$C$11/100,Settings!$C$12, Settings!$C$13/100)","v":0},null,0,{"$f":"AgentsFTE(U14, Settings!$C$10, Settings!$C$9,Settings!$C$11/100,Settings!$C$12, Settings!$C$13/100)","v":0}]
[null,"11:00:00",0,{"$f":"AgentsFTE(C15, Settings!$C$10, Settings!$C$9,Settings!$C$11/100,Settings!$C$12, Settings!$C$13/100)","v":0},null,0,{"$f":"AgentsFTE(F15, Settings!$C$10, Settings!$C$9,Settings!$C$11/100,Settings!$C$12, Settings!$C$13/100)","v":0},null,0,{"$f":"AgentsFTE(I15, Settings!$C$10, Settings!$C$9,Settings!$C$11/100,Settings!$C$12, Settings!$C$13/100)","v":0},null,0,{"$f":"AgentsFTE(L15, Settings!$C$10, Settings!$C$9,Settings!$C$11/100,Settings!$C$12, Settings!$C$13/100)","v":0},null,0,{"$f":"AgentsFTE(O15, Settings!$C$10, Settings!$C$9,Settings!$C$11/100,Settings!$C$12, Settings!$C$13/100)","v":0},null,0,{"$f":"AgentsFTE(R15, Settings!$C$10, Settings!$C$9,Settings!$C$11/100,Settings!$C$12, Settings!$C$13/100)","v":0},null,0,{"$f":"AgentsFTE(U15, Settings!$C$10, Settings!$C$9,Settings!$C$11/100,Settings!$C$12, Settings!$C$13/100)","v":0}]
[null,"12:00:00",0,{"$f":"AgentsFTE(C16, Settings!$C$10, Settings!$C$9,Settings!$C$11/100,Settings!$C$12, Settings!$C$13/100)","v":0},null,0,{"$f":"AgentsFTE(F16, Settings!$C$10, Settings!$C$9,Settings!$C$11/100,Settings!$C$12, Settings!$C$13/100)","v":0},null,0,{"$f":"AgentsFTE(I16, Settings!$C$10, Settings!$C$9,Settings!$C$11/100,Settings!$C$12, Settings!$C$13/100)","v":0},null,0,{"$f":"AgentsFTE(L16, Settings!$C$10, Settings!$C$9,Settings!$C$11/100,Settings!$C$12, Settings!$C$13/100)","v":0},null,0,{"$f":"AgentsFTE(O16, Settings!$C$10, Settings!$C$9,Settings!$C$11/100,Settings!$C$12, Settings!$C$13/100)","v":0},null,0,{"$f":"AgentsFTE(R16, Settings!$C$10, Settings!$C$9,Settings!$C$11/100,Settings!$C$12, Settings!$C$13/100)","v":0},null,0,{"$f":"AgentsFTE(U16, Settings!$C$10, Settings!$C$9,Settings!$C$11/100,Settings!$C$12, Settings!$C$13/100)","v":0}]
[null,"13:00:00",0,{"$f":"AgentsFTE(C17, Settings!$C$10, Settings!$C$9,Settings!$C$11/100,Settings!$C$12, Settings!$C$13/100)","v":0},null,0,{"$f":"AgentsFTE(F17, Settings!$C$10, Settings!$C$9,Settings!$C$11/100,Settings!$C$12, Settings!$C$13/100)","v":0},null,0,{"$f":"AgentsFTE(I17, Settings!$C$10, Settings!$C$9,Settings!$C$11/100,Settings!$C$12, Settings!$C$13/100)","v":0},null,0,{"$f":"AgentsFTE(L17, Settings!$C$10, Settings!$C$9,Settings!$C$11/100,Settings!$C$12, Settings!$C$13/100)","v":0},null,0,{"$f":"AgentsFTE(O17, Settings!$C$10, Settings!$C$9,Settings!$C$11/100,Settings!$C$12, Settings!$C$13/100)","v":0},null,0,{"$f":"AgentsFTE(R17, Settings!$C$10, Settings!$C$9,Settings!$C$11/100,Settings!$C$12, Settings!$C$13/100)","v":0},null,0,{"$f":"AgentsFTE(U17, Settings!$C$10, Settings!$C$9,Settings!$C$11/100,Settings!$C$12, Settings!$C$13/100)","v":0}]
[null,"14:00:00",0,{"$f":"AgentsFTE(C18, Settings!$C$10, Settings!$C$9,Settings!$C$11/100,Settings!$C$12, Settings!$C$13/100)","v":0},null,0,{"$f":"AgentsFTE(F18, Settings!$C$10, Settings!$C$9,Settings!$C$11/100,Settings!$C$12, Settings!$C$13/100)","v":0},null,0,{"$f":"AgentsFTE(I18, Settings!$C$10, Settings!$C$9,Settings!$C$11/100,Settings!$C$12, Settings!$C$13/100)","v":0},null,0,{"$f":"AgentsFTE(L18, Settings!$C$10, Settings!$C$9,Settings!$C$11/100,Settings!$C$12, Settings!$C$13/100)","v":0},null,0,{"$f":"AgentsFTE(O18, Settings!$C$10, Settings!$C$9,Settings!$C$11/100,Settings!$C$12, Settings!$C$13/100)","v":0},null,0,{"$f":"AgentsFTE(R18, Settings!$C$10, Settings!$C$9,Settings!$C$11/100,Settings!$C$12, Settings!$C$13/100)","v":0},null,0,{"$f":"AgentsFTE(U18, Settings!$C$10, Settings!$C$9,Settings!$C$11/100,Settings!$C$12, Settings!$C$13/100)","v":0}]
[null,"15:00:00",0,{"$f":"AgentsFTE(C19, Settings!$C$10, Settings!$C$9,Settings!$C$11/100,Settings!$C$12, Settings!$C$13/100)","v":0},null,0,{"$f":"AgentsFTE(F19, Settings!$C$10, Settings!$C$9,Settings!$C$11/100,Settings!$C$12, Settings!$C$13/100)","v":0},null,0,{"$f":"AgentsFTE(I19, Settings!$C$10, Settings!$C$9,Settings!$C$11/100,Settings!$C$12, Settings!$C$13/100)","v":0},null,0,{"$f":"AgentsFTE(L19, Settings!$C$10, Settings!$C$9,Settings!$C$11/100,Settings!$C$12, Settings!$C$13/100)","v":0},null,0,{"$f":"AgentsFTE(O19, Settings!$C$10, Settings!$C$9,Settings!$C$11/100,Settings!$C$12, Settings!$C$13/100)","v":0},null,0,{"$f":"AgentsFTE(R19, Settings!$C$10, Settings!$C$9,Settings!$C$11/100,Settings!$C$12, Settings!$C$13/100)","v":0},null,0,{"$f":"AgentsFTE(U19, Settings!$C$10, Settings!$C$9,Settings!$C$11/100,Settings!$C$12, Settings!$C$13/100)","v":0}]
[null,"16:00:00",0,{"$f":"AgentsFTE(C20, Settings!$C$10, Settings!$C$9,Settings!$C$11/100,Settings!$C$12, Settings!$C$13/100)","v":0},null,0,{"$f":"AgentsFTE(F20, Settings!$C$10, Settings!$C$9,Settings!$C$11/100,Settings!$C$12, Settings!$C$13/100)","v":0},null,0,{"$f":"AgentsFTE(I20, Settings!$C$10, Settings!$C$9,Settings!$C$11/100,Settings!$C$12, Settings!$C$13/100)","v":0},null,0,{"$f":"AgentsFTE(L20, Settings!$C$10, Settings!$C$9,Settings!$C$11/100,Settings!$C$12, Settings!$C$13/100)","v":0},null,0,{"$f":"AgentsFTE(O20, Settings!$C$10, Settings!$C$9,Settings!$C$11/100,Settings!$C$12, Settings!$C$13/100)","v":0},null,0,{"$f":"AgentsFTE(R20, Settings!$C$10, Settings!$C$9,Settings!$C$11/100,Settings!$C$12, Settings!$C$13/100)","v":0},null,0,{"$f":"AgentsFTE(U20, Settings!$C$10, Settings!$C$9,Settings!$C$11/100,Settings!$C$12, Settings!$C$13/100)","v":0}]
[null,"17:00:00",0,{"$f":"AgentsFTE(C21, Settings!$C$10, Settings!$C$9,Settings!$C$11/100,Settings!$C$12, Settings!$C$13/100)","v":0},null,0,{"$f":"AgentsFTE(F21, Settings!$C$10, Settings!$C$9,Settings!$C$11/100,Settings!$C$12, Settings!$C$13/100)","v":0},null,0,{"$f":"AgentsFTE(I21, Settings!$C$10, Settings!$C$9,Settings!$C$11/100,Settings!$C$12, Settings!$C$13/100)","v":0},null,0,{"$f":"AgentsFTE(L21, Settings!$C$10, Settings!$C$9,Settings!$C$11/100,Settings!$C$12, Settings!$C$13/100)","v":0},null,0,{"$f":"AgentsFTE(O21, Settings!$C$10, Settings!$C$9,Settings!$C$11/100,Settings!$C$12, Settings!$C$13/100)","v":0},null,0,{"$f":"AgentsFTE(R21, Settings!$C$10, Settings!$C$9,Settings!$C$11/100,Settings!$C$12, Settings!$C$13/100)","v":0},null,0,{"$f":"AgentsFTE(U21, Settings!$C$10, Settings!$C$9,Settings!$C$11/100,Settings!$C$12, Settings!$C$13/100)","v":0}]
[null,"18:00:00",0,{"$f":"AgentsFTE(C22, Settings!$C$10, Settings!$C$9,Settings!$C$11/100,Settings!$C$12, Settings!$C$13/100)","v":0},null,0,{"$f":"AgentsFTE(F22, Settings!$C$10, Settings!$C$9,Settings!$C$11/100,Settings!$C$12, Settings!$C$13/100)","v":0},null,0,{"$f":"AgentsFTE(I22, Settings!$C$10, Settings!$C$9,Settings!$C$11/100,Settings!$C$12, Settings!$C$13/100)","v":0},null,0,{"$f":"AgentsFTE(L22, Settings!$C$10, Settings!$C$9,Settings!$C$11/100,Settings!$C$12, Settings!$C$13/100)","v":0},null,0,{"$f":"AgentsFTE(O22, Settings!$C$10, Settings!$C$9,Settings!$C$11/100,Settings!$C$12, Settings!$C$13/100)","v":0},null,0,{"$f":"AgentsFTE(R22, Settings!$C$10, Settings!$C$9,Settings!$C$11/100,Settings!$C$12, Settings!$C$13/100)","v":0},null,0,{"$f":"AgentsFTE(U22, Settings!$C$10, Settings!$C$9,Settings!$C$11/100,Settings!$C$12, Settings!$C$13/100)","v":0}]
[null,"19:00:00",0,{"$f":"AgentsFTE(C23, Settings!$C$10, Settings!$C$9,Settings!$C$11/100,Settings!$C$12, Settings!$C$13/100)","v":0},null,0,{"$f":"AgentsFTE(F23, Settings!$C$10, Settings!$C$9,Settings!$C$11/100,Settings!$C$12, Settings!$C$13/100)","v":0},null,0,{"$f":"AgentsFTE(I23, Settings!$C$10, Settings!$C$9,Settings!$C$11/100,Settings!$C$12, Settings!$C$13/100)","v":0},null,0,{"$f":"AgentsFTE(L23, Settings!$C$10, Settings!$C$9,Settings!$C$11/100,Settings!$C$12, Settings!$C$13/100)","v":0},null,0,{"$f":"AgentsFTE(O23, Settings!$C$10, Settings!$C$9,Settings!$C$11/100,Settings!$C$12, Settings!$C$13/100)","v":0},null,0,{"$f":"AgentsFTE(R23, Settings!$C$10, Settings!$C$9,Settings!$C$11/100,Settings!$C$12, Settings!$C$13/100)","v":0},null,0,{"$f":"AgentsFTE(U23, Settings!$C$10, Settings!$C$9,Settings!$C$11/100,Settings!$C$12, Settings!$C$13/100)","v":0}]
[null,"20:00:00",0,{"$f":"AgentsFTE(C24, Settings!$C$10, Settings!$C$9,Settings!$C$11/100,Settings!$C$12, Settings!$C$13/100)","v":0},null,0,{"$f":"AgentsFTE(F24, Settings!$C$10, Settings!$C$9,Settings!$C$11/100,Settings!$C$12, Settings!$C$13/100)","v":0},null,0,{"$f":"AgentsFTE(I24, Settings!$C$10, Settings!$C$9,Settings!$C$11/100,Settings!$C$12, Settings!$C$13/100)","v":0},null,0,{"$f":"AgentsFTE(L24, Settings!$C$10, Settings!$C$9,Settings!$C$11/100,Settings!$C$12, Settings!$C$13/100)","v":0},null,0,{"$f":"AgentsFTE(O24, Settings!$C$10, Settings!$C$9,Settings!$C$11/100,Settings!$C$12, Settings!$C$13/100)","v":0},null,0,{"$f":"AgentsFTE(R24, Settings!$C$10, Settings!$C$9,Settings!$C$11/100,Settings!$C$12, Settings!$C$13/100)","v":0},null,0,{"$f":"AgentsFTE(U24, Settings!$C$10, Settings!$C$9,Settings!$C$11/100,Settings!$C$12, Settings!$C$13/100)","v":0}]
[null,"21:00:00",0,{"$f":"AgentsFTE(C25, Settings!$C$10, Settings!$C$9,Settings!$C$11/100,Settings!$C$12, Settings!$C$13/100)","v":0},null,0,{"$f":"AgentsFTE(F25, Settings!$C$10, Settings!$C$9,Settings!$C$11/100,Settings!$C$12, Settings!$C$13/100)","v":0},null,0,{"$f":"AgentsFTE(I25, Settings!$C$10, Settings!$C$9,Settings!$C$11/100,Settings!$C$12, Settings!$C$13/100)","v":0},null,0,{"$f":"AgentsFTE(L25, Settings!$C$10, Settings!$C$9,Settings!$C$11/100,Settings!$C$12, Settings!$C$13/100)","v":0},null,0,{"$f":"AgentsFTE(O25, Settings!$C$10, Settings!$C$9,Settings!$C$11/100,Settings!$C$12, Settings!$C$13/100)","v":0},null,0,{"$f":"AgentsFTE(R25, Settings!$C$10, Settings!$C$9,Settings!$C$11/100,Settings!$C$12, Settings!$C$13/100)","v":0},null,0,{"$f":"AgentsFTE(U25, Settings!$C$10, Settings!$C$9,Settings!$C$11/100,Settings!$C$12, Settings!$C$13/100)","v":0}]
[null,"22:00:00",0,{"$f":"AgentsFTE(C26, Settings!$C$10, Settings!$C$9,Settings!$C$11/100,Settings!$C$12, Settings!$C$13/100)","v":0},null,0,{"$f":"AgentsFTE(F26, Settings!$C$10, Settings!$C$9,Settings!$C$11/100,Settings!$C$12, Settings!$C$13/100)","v":0},null,0,{"$f":"AgentsFTE(I26, Settings!$C$10, Settings!$C$9,Settings!$C$11/100,Settings!$C$12, Settings!$C$13/100)","v":0},null,0,{"$f":"AgentsFTE(L26, Settings!$C$10, Settings!$C$9,Settings!$C$11/100,Settings!$C$12, Settings!$C$13/100)","v":0},null,0,{"$f":"AgentsFTE(O26, Settings!$C$10, Settings!$C$9,Settings!$C$11/100,Settings!$C$12, Settings!$C$13/100)","v":0},null,0,{"$f":"AgentsFTE(R26, Settings!$C$10, Settings!$C$9,Settings!$C$11/100,Settings!$C$12, Settings!$C$13/100)","v":0},null,0,{"$f":"AgentsFTE(U26, Settings!$C$10, Settings!$C$9,Settings!$C$11/100,Settings!$C$12, Settings!$C$13/100)","v":0}]
[null,"23:00:00",0,{"$f":"AgentsFTE(C27, Settings!$C$10, Settings!$C$9,Settings!$C$11/100,Settings!$C$12, Settings!$C$13/100)","v":0},null,0,{"$f":"AgentsFTE(F27, Settings!$C$10, Settings!$C$9,Settings!$C$11/100,Settings!$C$12, Settings!$C$13/100)","v":0},null,0,{"$f":"AgentsFTE(I27, Settings!$C$10, Settings!$C$9,Settings!$C$11/100,Settings!$C$12, Settings!$C$13/100)","v":0},null,0,{"$f":"AgentsFTE(L27, Settings!$C$10, Settings!$C$9,Settings!$C$11/100,Settings!$C$12, Settings!$C$13/100)","v":0},null,0,{"$f":"AgentsFTE(O27, Settings!$C$10, Settings!$C$9,Settings!$C$11/100,Settings!$C$12, Settings!$C$13/100)","v":0},null,0,{"$f":"AgentsFTE(R27, Settings!$C$10, Settings!$C$9,Settings!$C$11/100,Settings!$C$12, Settings!$C$13/100)","v":0},null,0,{"$f":"AgentsFTE(U27, Settings!$C$10, Settings!$C$9,Settings!$C$11/100,Settings!$C$12, Settings!$C$13/100)","v":0}]

{"sheet":"3","index":3,"n_rows":27,"n_cols":23,"rows_kept":27,"cut":false,"hidden":false,"merged":[[0,1,0,22],[1,2,1,4],[1,5,1,7],[1,8,1,10],[1,11,1,13],[1,14,1,16],[1,17,1,19],[1,20,1,22]]}
[null,"Skill 3"]
[null,null,"Monday",null,null,"Tuesday",null,null,"Wednesday",null,null,"Thursday",null,null,"Friday",null,null,"Saturday",null,null,"Sunday "]
[null,"Eastern Time","Calls","Need","Have","Calls","Need","Have","Calls","Need","Have","Calls","Need","Have","Calls","Need","Have","Calls","Need","Have","Calls","Need","Have"]
[null,"00:00:00",0,{"$f":"AgentsFTE(C4, Settings!$C$17, Settings!$C$16,Settings!$C$18/100,Settings!$C$19, Settings!$C$20/100)","v":0},null,0,{"$f":"AgentsFTE(F4, Settings!$C$17, Settings!$C$16,Settings!$C$18/100,Settings!$C$19, Settings!$C$20/100)","v":0},null,0,{"$f":"AgentsFTE(I4, Settings!$C$17, Settings!$C$16,Settings!$C$18/100,Settings!$C$19, Settings!$C$20/100)","v":0},null,0,{"$f":"AgentsFTE(L4, Settings!$C$17, Settings!$C$16,Settings!$C$18/100,Settings!$C$19, Settings!$C$20/100)","v":0},null,0,{"$f":"AgentsFTE(O4, Settings!$C$17, Settings!$C$16,Settings!$C$18/100,Settings!$C$19, Settings!$C$20/100)","v":0},null,0,{"$f":"AgentsFTE(R4, Settings!$C$17, Settings!$C$16,Settings!$C$18/100,Settings!$C$19, Settings!$C$20/100)","v":0},null,0,{"$f":"AgentsFTE(U4, Settings!$C$17, Settings!$C$16,Settings!$C$18/100,Settings!$C$19, Settings!$C$20/100)","v":0}]
[null,"01:00:00",0,{"$f":"AgentsFTE(C5, Settings!$C$17, Settings!$C$16,Settings!$C$18/100,Settings!$C$19, Settings!$C$20/100)","v":0},null,0,{"$f":"AgentsFTE(F5, Settings!$C$17, Settings!$C$16,Settings!$C$18/100,Settings!$C$19, Settings!$C$20/100)","v":0},null,0,{"$f":"AgentsFTE(I5, Settings!$C$17, Settings!$C$16,Settings!$C$18/100,Settings!$C$19, Settings!$C$20/100)","v":0},null,0,{"$f":"AgentsFTE(L5, Settings!$C$17, Settings!$C$16,Settings!$C$18/100,Settings!$C$19, Settings!$C$20/100)","v":0},null,0,{"$f":"AgentsFTE(O5, Settings!$C$17, Settings!$C$16,Settings!$C$18/100,Settings!$C$19, Settings!$C$20/100)","v":0},null,0,{"$f":"AgentsFTE(R5, Settings!$C$17, Settings!$C$16,Settings!$C$18/100,Settings!$C$19, Settings!$C$20/100)","v":0},null,0,{"$f":"AgentsFTE(U5, Settings!$C$17, Settings!$C$16,Settings!$C$18/100,Settings!$C$19, Settings!$C$20/100)","v":0}]
[null,"02:00:00",0,{"$f":"AgentsFTE(C6, Settings!$C$17, Settings!$C$16,Settings!$C$18/100,Settings!$C$19, Settings!$C$20/100)","v":0},null,0,{"$f":"AgentsFTE(F6, Settings!$C$17, Settings!$C$16,Settings!$C$18/100,Settings!$C$19, Settings!$C$20/100)","v":0},null,0,{"$f":"AgentsFTE(I6, Settings!$C$17, Settings!$C$16,Settings!$C$18/100,Settings!$C$19, Settings!$C$20/100)","v":0},null,0,{"$f":"AgentsFTE(L6, Settings!$C$17, Settings!$C$16,Settings!$C$18/100,Settings!$C$19, Settings!$C$20/100)","v":0},null,0,{"$f":"AgentsFTE(O6, Settings!$C$17, Settings!$C$16,Settings!$C$18/100,Settings!$C$19, Settings!$C$20/100)","v":0},null,0,{"$f":"AgentsFTE(R6, Settings!$C$17, Settings!$C$16,Settings!$C$18/100,Settings!$C$19, Settings!$C$20/100)","v":0},null,0,{"$f":"AgentsFTE(U6, Settings!$C$17, Settings!$C$16,Settings!$C$18/100,Settings!$C$19, Settings!$C$20/100)","v":0}]
[null,"03:00:00",0,{"$f":"AgentsFTE(C7, Settings!$C$17, Settings!$C$16,Settings!$C$18/100,Settings!$C$19, Settings!$C$20/100)","v":0},null,0,{"$f":"AgentsFTE(F7, Settings!$C$17, Settings!$C$16,Settings!$C$18/100,Settings!$C$19, Settings!$C$20/100)","v":0},null,0,{"$f":"AgentsFTE(I7, Settings!$C$17, Settings!$C$16,Settings!$C$18/100,Settings!$C$19, Settings!$C$20/100)","v":0},null,0,{"$f":"AgentsFTE(L7, Settings!$C$17, Settings!$C$16,Settings!$C$18/100,Settings!$C$19, Settings!$C$20/100)","v":0},null,0,{"$f":"AgentsFTE(O7, Settings!$C$17, Settings!$C$16,Settings!$C$18/100,Settings!$C$19, Settings!$C$20/100)","v":0},null,0,{"$f":"AgentsFTE(R7, Settings!$C$17, Settings!$C$16,Settings!$C$18/100,Settings!$C$19, Settings!$C$20/100)","v":0},null,0,{"$f":"AgentsFTE(U7, Settings!$C$17, Settings!$C$16,Settings!$C$18/100,Settings!$C$19, Settings!$C$20/100)","v":0}]
[null,"04:00:00",0,{"$f":"AgentsFTE(C8, Settings!$C$17, Settings!$C$16,Settings!$C$18/100,Settings!$C$19, Settings!$C$20/100)","v":0},null,0,{"$f":"AgentsFTE(F8, Settings!$C$17, Settings!$C$16,Settings!$C$18/100,Settings!$C$19, Settings!$C$20/100)","v":0},null,0,{"$f":"AgentsFTE(I8, Settings!$C$17, Settings!$C$16,Settings!$C$18/100,Settings!$C$19, Settings!$C$20/100)","v":0},null,0,{"$f":"AgentsFTE(L8, Settings!$C$17, Settings!$C$16,Settings!$C$18/100,Settings!$C$19, Settings!$C$20/100)","v":0},null,0,{"$f":"AgentsFTE(O8, Settings!$C$17, Settings!$C$16,Settings!$C$18/100,Settings!$C$19, Settings!$C$20/100)","v":0},null,0,{"$f":"AgentsFTE(R8, Settings!$C$17, Settings!$C$16,Settings!$C$18/100,Settings!$C$19, Settings!$C$20/100)","v":0},null,0,{"$f":"AgentsFTE(U8, Settings!$C$17, Settings!$C$16,Settings!$C$18/100,Settings!$C$19, Settings!$C$20/100)","v":0}]
[null,"05:00:00",0,{"$f":"AgentsFTE(C9, Settings!$C$17, Settings!$C$16,Settings!$C$18/100,Settings!$C$19, Settings!$C$20/100)","v":0},null,0,{"$f":"AgentsFTE(F9, Settings!$C$17, Settings!$C$16,Settings!$C$18/100,Settings!$C$19, Settings!$C$20/100)","v":0},null,0,{"$f":"AgentsFTE(I9, Settings!$C$17, Settings!$C$16,Settings!$C$18/100,Settings!$C$19, Settings!$C$20/100)","v":0},null,0,{"$f":"AgentsFTE(L9, Settings!$C$17, Settings!$C$16,Settings!$C$18/100,Settings!$C$19, Settings!$C$20/100)","v":0},null,0,{"$f":"AgentsFTE(O9, Settings!$C$17, Settings!$C$16,Settings!$C$18/100,Settings!$C$19, Settings!$C$20/100)","v":0},null,0,{"$f":"AgentsFTE(R9, Settings!$C$17, Settings!$C$16,Settings!$C$18/100,Settings!$C$19, Settings!$C$20/100)","v":0},null,0,{"$f":"AgentsFTE(U9, Settings!$C$17, Settings!$C$16,Settings!$C$18/100,Settings!$C$19, Settings!$C$20/100)","v":0}]
[null,"06:00:00",0,{"$f":"AgentsFTE(C10, Settings!$C$17, Settings!$C$16,Settings!$C$18/100,Settings!$C$19, Settings!$C$20/100)","v":0},null,0,{"$f":"AgentsFTE(F10, Settings!$C$17, Settings!$C$16,Settings!$C$18/100,Settings!$C$19, Settings!$C$20/100)","v":0},null,0,{"$f":"AgentsFTE(I10, Settings!$C$17, Settings!$C$16,Settings!$C$18/100,Settings!$C$19, Settings!$C$20/100)","v":0},null,0,{"$f":"AgentsFTE(L10, Settings!$C$17, Settings!$C$16,Settings!$C$18/100,Settings!$C$19, Settings!$C$20/100)","v":0},null,0,{"$f":"AgentsFTE(O10, Settings!$C$17, Settings!$C$16,Settings!$C$18/100,Settings!$C$19, Settings!$C$20/100)","v":0},null,0,{"$f":"AgentsFTE(R10, Settings!$C$17, Settings!$C$16,Settings!$C$18/100,Settings!$C$19, Settings!$C$20/100)","v":0},null,0,{"$f":"AgentsFTE(U10, Settings!$C$17, Settings!$C$16,Settings!$C$18/100,Settings!$C$19, Settings!$C$20/100)","v":0}]
[null,"07:00:00",0,{"$f":"AgentsFTE(C11, Settings!$C$17, Settings!$C$16,Settings!$C$18/100,Settings!$C$19, Settings!$C$20/100)","v":0},null,0,{"$f":"AgentsFTE(F11, Settings!$C$17, Settings!$C$16,Settings!$C$18/100,Settings!$C$19, Settings!$C$20/100)","v":0},null,0,{"$f":"AgentsFTE(I11, Settings!$C$17, Settings!$C$16,Settings!$C$18/100,Settings!$C$19, Settings!$C$20/100)","v":0},null,0,{"$f":"AgentsFTE(L11, Settings!$C$17, Settings!$C$16,Settings!$C$18/100,Settings!$C$19, Settings!$C$20/100)","v":0},null,0,{"$f":"AgentsFTE(O11, Settings!$C$17, Settings!$C$16,Settings!$C$18/100,Settings!$C$19, Settings!$C$20/100)","v":0},null,0,{"$f":"AgentsFTE(R11, Settings!$C$17, Settings!$C$16,Settings!$C$18/100,Settings!$C$19, Settings!$C$20/100)","v":0},null,0,{"$f":"AgentsFTE(U11, Settings!$C$17, Settings!$C$16,Settings!$C$18/100,Settings!$C$19, Settings!$C$20/100)","v":0}]
[null,"08:00:00",0,{"$f":"AgentsFTE(C12, Settings!$C$17, Settings!$C$16,Settings!$C$18/100,Settings!$C$19, Settings!$C$20/100)","v":0},null,0,{"$f":"AgentsFTE(F12, Settings!$C$17, Settings!$C$16,Settings!$C$18/100,Settings!$C$19, Settings!$C$20/100)","v":0},null,0,{"$f":"AgentsFTE(I12, Settings!$C$17, Settings!$C$16,Settings!$C$18/100,Settings!$C$19, Settings!$C$20/100)","v":0},null,0,{"$f":"AgentsFTE(L12, Settings!$C$17, Settings!$C$16,Settings!$C$18/100,Settings!$C$19, Settings!$C$20/100)","v":0},null,0,{"$f":"AgentsFTE(O12, Settings!$C$17, Settings!$C$16,Settings!$C$18/100,Settings!$C$19, Settings!$C$20/100)","v":0},null,0,{"$f":"AgentsFTE(R12, Settings!$C$17, Settings!$C$16,Settings!$C$18/100,Settings!$C$19, Settings!$C$20/100)","v":0},null,0,{"$f":"AgentsFTE(U12, Settings!$C$17, Settings!$C$16,Settings!$C$18/100,Settings!$C$19, Settings!$C$20/100)","v":0}]
[null,"09:00:00",0,{"$f":"AgentsFTE(C13, Settings!$C$17, Settings!$C$16,Settings!$C$18/100,Settings!$C$19, Settings!$C$20/100)","v":0},null,0,{"$f":"AgentsFTE(F13, Settings!$C$17, Settings!$C$16,Settings!$C$18/100,Settings!$C$19, Settings!$C$20/100)","v":0},null,0,{"$f":"AgentsFTE(I13, Settings!$C$17, Settings!$C$16,Settings!$C$18/100,Settings!$C$19, Settings!$C$20/100)","v":0},null,0,{"$f":"AgentsFTE(L13, Settings!$C$17, Settings!$C$16,Settings!$C$18/100,Settings!$C$19, Settings!$C$20/100)","v":0},null,0,{"$f":"AgentsFTE(O13, Settings!$C$17, Settings!$C$16,Settings!$C$18/100,Settings!$C$19, Settings!$C$20/100)","v":0},null,0,{"$f":"AgentsFTE(R13, Settings!$C$17, Settings!$C$16,Settings!$C$18/100,Settings!$C$19, Settings!$C$20/100)","v":0},null,0,{"$f":"AgentsFTE(U13, Settings!$C$17, Settings!$C$16,Settings!$C$18/100,Settings!$C$19, Settings!$C$20/100)","v":0}]
[null,"10:00:00",0,{"$f":"AgentsFTE(C14, Settings!$C$17, Settings!$C$16,Settings!$C$18/100,Settings!$C$19, Settings!$C$20/100)","v":0},null,0,{"$f":"AgentsFTE(F14, Settings!$C$17, Settings!$C$16,Settings!$C$18/100,Settings!$C$19, Settings!$C$20/100)","v":0},null,0,{"$f":"AgentsFTE(I14, Settings!$C$17, Settings!$C$16,Settings!$C$18/100,Settings!$C$19, Settings!$C$20/100)","v":0},null,0,{"$f":"AgentsFTE(L14, Settings!$C$17, Settings!$C$16,Settings!$C$18/100,Settings!$C$19, Settings!$C$20/100)","v":0},null,0,{"$f":"AgentsFTE(O14, Settings!$C$17, Settings!$C$16,Settings!$C$18/100,Settings!$C$19, Settings!$C$20/100)","v":0},null,0,{"$f":"AgentsFTE(R14, Settings!$C$17, Settings!$C$16,Settings!$C$18/100,Settings!$C$19, Settings!$C$20/100)","v":0},null,0,{"$f":"AgentsFTE(U14, Settings!$C$17, Settings!$C$16,Settings!$C$18/100,Settings!$C$19, Settings!$C$20/100)","v":0}]
[null,"11:00:00",0,{"$f":"AgentsFTE(C15, Settings!$C$17, Settings!$C$16,Settings!$C$18/100,Settings!$C$19, Settings!$C$20/100)","v":0},null,0,{"$f":"AgentsFTE(F15, Settings!$C$17, Settings!$C$16,Settings!$C$18/100,Settings!$C$19, Settings!$C$20/100)","v":0},null,0,{"$f":"AgentsFTE(I15, Settings!$C$17, Settings!$C$16,Settings!$C$18/100,Settings!$C$19, Settings!$C$20/100)","v":0},null,0,{"$f":"AgentsFTE(L15, Settings!$C$17, Settings!$C$16,Settings!$C$18/100,Settings!$C$19, Settings!$C$20/100)","v":0},null,0,{"$f":"AgentsFTE(O15, Settings!$C$17, Settings!$C$16,Settings!$C$18/100,Settings!$C$19, Settings!$C$20/100)","v":0},null,0,{"$f":"AgentsFTE(R15, Settings!$C$17, Settings!$C$16,Settings!$C$18/100,Settings!$C$19, Settings!$C$20/100)","v":0},null,0,{"$f":"AgentsFTE(U15, Settings!$C$17, Settings!$C$16,Settings!$C$18/100,Settings!$C$19, Settings!$C$20/100)","v":0}]
[null,"12:00:00",0,{"$f":"AgentsFTE(C16, Settings!$C$17, Settings!$C$16,Settings!$C$18/100,Settings!$C$19, Settings!$C$20/100)","v":0},null,0,{"$f":"AgentsFTE(F16, Settings!$C$17, Settings!$C$16,Settings!$C$18/100,Settings!$C$19, Settings!$C$20/100)","v":0},null,0,{"$f":"AgentsFTE(I16, Settings!$C$17, Settings!$C$16,Settings!$C$18/100,Settings!$C$19, Settings!$C$20/100)","v":0},null,0,{"$f":"AgentsFTE(L16, Settings!$C$17, Settings!$C$16,Settings!$C$18/100,Settings!$C$19, Settings!$C$20/100)","v":0},null,0,{"$f":"AgentsFTE(O16, Settings!$C$17, Settings!$C$16,Settings!$C$18/100,Settings!$C$19, Settings!$C$20/100)","v":0},null,0,{"$f":"AgentsFTE(R16, Settings!$C$17, Settings!$C$16,Settings!$C$18/100,Settings!$C$19, Settings!$C$20/100)","v":0},null,0,{"$f":"AgentsFTE(U16, Settings!$C$17, Settings!$C$16,Settings!$C$18/100,Settings!$C$19, Settings!$C$20/100)","v":0}]
[null,"13:00:00",0,{"$f":"AgentsFTE(C17, Settings!$C$17, Settings!$C$16,Settings!$C$18/100,Settings!$C$19, Settings!$C$20/100)","v":0},null,0,{"$f":"AgentsFTE(F17, Settings!$C$17, Settings!$C$16,Settings!$C$18/100,Settings!$C$19, Settings!$C$20/100)","v":0},null,0,{"$f":"AgentsFTE(I17, Settings!$C$17, Settings!$C$16,Settings!$C$18/100,Settings!$C$19, Settings!$C$20/100)","v":0},null,0,{"$f":"AgentsFTE(L17, Settings!$C$17, Settings!$C$16,Settings!$C$18/100,Settings!$C$19, Settings!$C$20/100)","v":0},null,0,{"$f":"AgentsFTE(O17, Settings!$C$17, Settings!$C$16,Settings!$C$18/100,Settings!$C$19, Settings!$C$20/100)","v":0},null,0,{"$f":"AgentsFTE(R17, Settings!$C$17, Settings!$C$16,Settings!$C$18/100,Settings!$C$19, Settings!$C$20/100)","v":0},null,0,{"$f":"AgentsFTE(U17, Settings!$C$17, Settings!$C$16,Settings!$C$18/100,Settings!$C$19, Settings!$C$20/100)","v":0}]
[null,"14:00:00",0,{"$f":"AgentsFTE(C18, Settings!$C$17, Settings!$C$16,Settings!$C$18/100,Settings!$C$19, Settings!$C$20/100)","v":0},null,0,{"$f":"AgentsFTE(F18, Settings!$C$17, Settings!$C$16,Settings!$C$18/100,Settings!$C$19, Settings!$C$20/100)","v":0},null,0,{"$f":"AgentsFTE(I18, Settings!$C$17, Settings!$C$16,Settings!$C$18/100,Settings!$C$19, Settings!$C$20/100)","v":0},null,0,{"$f":"AgentsFTE(L18, Settings!$C$17, Settings!$C$16,Settings!$C$18/100,Settings!$C$19, Settings!$C$20/100)","v":0},null,0,{"$f":"AgentsFTE(O18, Settings!$C$17, Settings!$C$16,Settings!$C$18/100,Settings!$C$19, Settings!$C$20/100)","v":0},null,0,{"$f":"AgentsFTE(R18, Settings!$C$17, Settings!$C$16,Settings!$C$18/100,Settings!$C$19, Settings!$C$20/100)","v":0},null,0,{"$f":"AgentsFTE(U18, Settings!$C$17, Settings!$C$16,Settings!$C$18/100,Settings!$C$19, Settings!$C$20/100)","v":0}]
[null,"15:00:00",0,{"$f":"AgentsFTE(C19, Settings!$C$17, Settings!$C$16,Settings!$C$18/100,Settings!$C$19, Settings!$C$20/100)","v":0},null,0,{"$f":"AgentsFTE(F19, Settings!$C$17, Settings!$C$16,Settings!$C$18/100,Settings!$C$19, Settings!$C$20/100)","v":0},null,0,{"$f":"AgentsFTE(I19, Settings!$C$17, Settings!$C$16,Settings!$C$18/100,Settings!$C$19, Settings!$C$20/100)","v":0},null,0,{"$f":"AgentsFTE(L19, Settings!$C$17, Settings!$C$16,Settings!$C$18/100,Settings!$C$19, Settings!$C$20/100)","v":0},null,0,{"$f":"AgentsFTE(O19, Settings!$C$17, Settings!$C$16,Settings!$C$18/100,Settings!$C$19, Settings!$C$20/100)","v":0},null,0,{"$f":"AgentsFTE(R19, Settings!$C$17, Settings!$C$16,Settings!$C$18/100,Settings!$C$19, Settings!$C$20/100)","v":0},null,0,{"$f":"AgentsFTE(U19, Settings!$C$17, Settings!$C$16,Settings!$C$18/100,Settings!$C$19, Settings!$C$20/100)","v":0}]
[null,"16:00:00",0,{"$f":"AgentsFTE(C20, Settings!$C$17, Settings!$C$16,Settings!$C$18/100,Settings!$C$19, Settings!$C$20/100)","v":0},null,0,{"$f":"AgentsFTE(F20, Settings!$C$17, Settings!$C$16,Settings!$C$18/100,Settings!$C$19, Settings!$C$20/100)","v":0},null,0,{"$f":"AgentsFTE(I20, Settings!$C$17, Settings!$C$16,Settings!$C$18/100,Settings!$C$19, Settings!$C$20/100)","v":0},null,0,{"$f":"AgentsFTE(L20, Settings!$C$17, Settings!$C$16,Settings!$C$18/100,Settings!$C$19, Settings!$C$20/100)","v":0},null,0,{"$f":"AgentsFTE(O20, Settings!$C$17, Settings!$C$16,Settings!$C$18/100,Settings!$C$19, Settings!$C$20/100)","v":0},null,0,{"$f":"AgentsFTE(R20, Settings!$C$17, Settings!$C$16,Settings!$C$18/100,Settings!$C$19, Settings!$C$20/100)","v":0},null,0,{"$f":"AgentsFTE(U20, Settings!$C$17, Settings!$C$16,Settings!$C$18/100,Settings!$C$19, Settings!$C$20/100)","v":0}]
[null,"17:00:00",0,{"$f":"AgentsFTE(C21, Settings!$C$17, Settings!$C$16,Settings!$C$18/100,Settings!$C$19, Settings!$C$20/100)","v":0},null,0,{"$f":"AgentsFTE(F21, Settings!$C$17, Settings!$C$16,Settings!$C$18/100,Settings!$C$19, Settings!$C$20/100)","v":0},null,0,{"$f":"AgentsFTE(I21, Settings!$C$17, Settings!$C$16,Settings!$C$18/100,Settings!$C$19, Settings!$C$20/100)","v":0},null,0,{"$f":"AgentsFTE(L21, Settings!$C$17, Settings!$C$16,Settings!$C$18/100,Settings!$C$19, Settings!$C$20/100)","v":0},null,0,{"$f":"AgentsFTE(O21, Settings!$C$17, Settings!$C$16,Settings!$C$18/100,Settings!$C$19, Settings!$C$20/100)","v":0},null,0,{"$f":"AgentsFTE(R21, Settings!$C$17, Settings!$C$16,Settings!$C$18/100,Settings!$C$19, Settings!$C$20/100)","v":0},null,0,{"$f":"AgentsFTE(U21, Settings!$C$17, Settings!$C$16,Settings!$C$18/100,Settings!$C$19, Settings!$C$20/100)","v":0}]
[null,"18:00:00",0,{"$f":"AgentsFTE(C22, Settings!$C$17, Settings!$C$16,Settings!$C$18/100,Settings!$C$19, Settings!$C$20/100)","v":0},null,0,{"$f":"AgentsFTE(F22, Settings!$C$17, Settings!$C$16,Settings!$C$18/100,Settings!$C$19, Settings!$C$20/100)","v":0},null,0,{"$f":"AgentsFTE(I22, Settings!$C$17, Settings!$C$16,Settings!$C$18/100,Settings!$C$19, Settings!$C$20/100)","v":0},null,0,{"$f":"AgentsFTE(L22, Settings!$C$17, Settings!$C$16,Settings!$C$18/100,Settings!$C$19, Settings!$C$20/100)","v":0},null,0,{"$f":"AgentsFTE(O22, Settings!$C$17, Settings!$C$16,Settings!$C$18/100,Settings!$C$19, Settings!$C$20/100)","v":0},null,0,{"$f":"AgentsFTE(R22, Settings!$C$17, Settings!$C$16,Settings!$C$18/100,Settings!$C$19, Settings!$C$20/100)","v":0},null,0,{"$f":"AgentsFTE(U22, Settings!$C$17, Settings!$C$16,Settings!$C$18/100,Settings!$C$19, Settings!$C$20/100)","v":0}]
[null,"19:00:00",0,{"$f":"AgentsFTE(C23, Settings!$C$17, Settings!$C$16,Settings!$C$18/100,Settings!$C$19, Settings!$C$20/100)","v":0},null,0,{"$f":"AgentsFTE(F23, Settings!$C$17, Settings!$C$16,Settings!$C$18/100,Settings!$C$19, Settings!$C$20/100)","v":0},null,0,{"$f":"AgentsFTE(I23, Settings!$C$17, Settings!$C$16,Settings!$C$18/100,Settings!$C$19, Settings!$C$20/100)","v":0},null,0,{"$f":"AgentsFTE(L23, Settings!$C$17, Settings!$C$16,Settings!$C$18/100,Settings!$C$19, Settings!$C$20/100)","v":0},null,0,{"$f":"AgentsFTE(O23, Settings!$C$17, Settings!$C$16,Settings!$C$18/100,Settings!$C$19, Settings!$C$20/100)","v":0},null,0,{"$f":"AgentsFTE(R23, Settings!$C$17, Settings!$C$16,Settings!$C$18/100,Settings!$C$19, Settings!$C$20/100)","v":0},null,0,{"$f":"AgentsFTE(U23, Settings!$C$17, Settings!$C$16,Settings!$C$18/100,Settings!$C$19, Settings!$C$20/100)","v":0}]
[null,"20:00:00",0,{"$f":"AgentsFTE(C24, Settings!$C$17, Settings!$C$16,Settings!$C$18/100,Settings!$C$19, Settings!$C$20/100)","v":0},null,0,{"$f":"AgentsFTE(F24, Settings!$C$17, Settings!$C$16,Settings!$C$18/100,Settings!$C$19, Settings!$C$20/100)","v":0},null,0,{"$f":"AgentsFTE(I24, Settings!$C$17, Settings!$C$16,Settings!$C$18/100,Settings!$C$19, Settings!$C$20/100)","v":0},null,0,{"$f":"AgentsFTE(L24, Settings!$C$17, Settings!$C$16,Settings!$C$18/100,Settings!$C$19, Settings!$C$20/100)","v":0},null,0,{"$f":"AgentsFTE(O24, Settings!$C$17, Settings!$C$16,Settings!$C$18/100,Settings!$C$19, Settings!$C$20/100)","v":0},null,0,{"$f":"AgentsFTE(R24, Settings!$C$17, Settings!$C$16,Settings!$C$18/100,Settings!$C$19, Settings!$C$20/100)","v":0},null,0,{"$f":"AgentsFTE(U24, Settings!$C$17, Settings!$C$16,Settings!$C$18/100,Settings!$C$19, Settings!$C$20/100)","v":0}]
[null,"21:00:00",0,{"$f":"AgentsFTE(C25, Settings!$C$17, Settings!$C$16,Settings!$C$18/100,Settings!$C$19, Settings!$C$20/100)","v":0},null,0,{"$f":"AgentsFTE(F25, Settings!$C$17, Settings!$C$16,Settings!$C$18/100,Settings!$C$19, Settings!$C$20/100)","v":0},null,0,{"$f":"AgentsFTE(I25, Settings!$C$17, Settings!$C$16,Settings!$C$18/100,Settings!$C$19, Settings!$C$20/100)","v":0},null,0,{"$f":"AgentsFTE(L25, Settings!$C$17, Settings!$C$16,Settings!$C$18/100,Settings!$C$19, Settings!$C$20/100)","v":0},null,0,{"$f":"AgentsFTE(O25, Settings!$C$17, Settings!$C$16,Settings!$C$18/100,Settings!$C$19, Settings!$C$20/100)","v":0},null,0,{"$f":"AgentsFTE(R25, Settings!$C$17, Settings!$C$16,Settings!$C$18/100,Settings!$C$19, Settings!$C$20/100)","v":0},null,0,{"$f":"AgentsFTE(U25, Settings!$C$17, Settings!$C$16,Settings!$C$18/100,Settings!$C$19, Settings!$C$20/100)","v":0}]
[null,"22:00:00",0,{"$f":"AgentsFTE(C26, Settings!$C$17, Settings!$C$16,Settings!$C$18/100,Settings!$C$19, Settings!$C$20/100)","v":0},null,0,{"$f":"AgentsFTE(F26, Settings!$C$17, Settings!$C$16,Settings!$C$18/100,Settings!$C$19, Settings!$C$20/100)","v":0},null,0,{"$f":"AgentsFTE(I26, Settings!$C$17, Settings!$C$16,Settings!$C$18/100,Settings!$C$19, Settings!$C$20/100)","v":0},null,0,{"$f":"AgentsFTE(L26, Settings!$C$17, Settings!$C$16,Settings!$C$18/100,Settings!$C$19, Settings!$C$20/100)","v":0},null,0,{"$f":"AgentsFTE(O26, Settings!$C$17, Settings!$C$16,Settings!$C$18/100,Settings!$C$19, Settings!$C$20/100)","v":0},null,0,{"$f":"AgentsFTE(R26, Settings!$C$17, Settings!$C$16,Settings!$C$18/100,Settings!$C$19, Settings!$C$20/100)","v":0},null,0,{"$f":"AgentsFTE(U26, Settings!$C$17, Settings!$C$16,Settings!$C$18/100,Settings!$C$19, Settings!$C$20/100)","v":0}]
[null,"23:00:00",0,{"$f":"AgentsFTE(C27, Settings!$C$17, Settings!$C$16,Settings!$C$18/100,Settings!$C$19, Settings!$C$20/100)","v":0},null,0,{"$f":"AgentsFTE(F27, Settings!$C$17, Settings!$C$16,Settings!$C$18/100,Settings!$C$19, Settings!$C$20/100)","v":0},null,0,{"$f":"AgentsFTE(I27, Settings!$C$17, Settings!$C$16,Settings!$C$18/100,Settings!$C$19, Settings!$C$20/100)","v":0},null,0,{"$f":"AgentsFTE(L27, Settings!$C$17, Settings!$C$16,Settings!$C$18/100,Settings!$C$19, Settings!$C$20/100)","v":0},null,0,{"$f":"AgentsFTE(O27, Settings!$C$17, Settings!$C$16,Settings!$C$18/100,Settings!$C$19, Settings!$C$20/100)","v":0},null,0,{"$f":"AgentsFTE(R27, Settings!$C$17, Settings!$C$16,Settings!$C$18/100,Settings!$C$19, Settings!$C$20/100)","v":0},null,0,{"$f":"AgentsFTE(U27, Settings!$C$17, Settings!$C$16,Settings!$C$18/100,Settings!$C$19, Settings!$C$20/100)","v":0}]

{"sheet":"4","index":4,"n_rows":27,"n_cols":23,"rows_kept":27,"cut":false,"hidden":false,"merged":[[0,1,0,22],[1,2,1,4],[1,5,1,7],[1,8,1,10],[1,11,1,13],[1,14,1,16],[1,17,1,19],[1,20,1,22]]}
[null,"Skill 4"]
[null,null,"Monday",null,null,"Tuesday",null,null,"Wednesday",null,null,"Thursday",null,null,"Friday",null,null,"Saturday",null,null,"Sunday "]
[null,"Eastern Time","Calls","Need","Have","Calls","Need","Have","Calls","Need","Have","Calls","Need","Have","Calls","Need","Have","Calls","Need","Have","Calls","Need","Have"]
[null,"00:00:00",0,{"$f":"AgentsFTE(C4, Settings!$C$24, Settings!$C$23,Settings!$C$25/100,Settings!$C$26, Settings!$C$27/100)","v":0},null,0,{"$f":"AgentsFTE(F4, Settings!$C$24, Settings!$C$23,Settings!$C$25/100,Settings!$C$26, Settings!$C$27/100)","v":0},null,0,{"$f":"AgentsFTE(I4, Settings!$C$24, Settings!$C$23,Settings!$C$25/100,Settings!$C$26, Settings!$C$27/100)","v":0},null,0,{"$f":"AgentsFTE(L4, Settings!$C$24, Settings!$C$23,Settings!$C$25/100,Settings!$C$26, Settings!$C$27/100)","v":0},null,0,{"$f":"AgentsFTE(O4, Settings!$C$24, Settings!$C$23,Settings!$C$25/100,Settings!$C$26, Settings!$C$27/100)","v":0},null,0,{"$f":"AgentsFTE(R4, Settings!$C$24, Settings!$C$23,Settings!$C$25/100,Settings!$C$26, Settings!$C$27/100)","v":0},null,0,{"$f":"AgentsFTE(U4, Settings!$C$24, Settings!$C$23,Settings!$C$25/100,Settings!$C$26, Settings!$C$27/100)","v":0}]
[null,"01:00:00",0,{"$f":"AgentsFTE(C5, Settings!$C$24, Settings!$C$23,Settings!$C$25/100,Settings!$C$26, Settings!$C$27/100)","v":0},null,0,{"$f":"AgentsFTE(F5, Settings!$C$24, Settings!$C$23,Settings!$C$25/100,Settings!$C$26, Settings!$C$27/100)","v":0},null,0,{"$f":"AgentsFTE(I5, Settings!$C$24, Settings!$C$23,Settings!$C$25/100,Settings!$C$26, Settings!$C$27/100)","v":0},null,0,{"$f":"AgentsFTE(L5, Settings!$C$24, Settings!$C$23,Settings!$C$25/100,Settings!$C$26, Settings!$C$27/100)","v":0},null,0,{"$f":"AgentsFTE(O5, Settings!$C$24, Settings!$C$23,Settings!$C$25/100,Settings!$C$26, Settings!$C$27/100)","v":0},null,0,{"$f":"AgentsFTE(R5, Settings!$C$24, Settings!$C$23,Settings!$C$25/100,Settings!$C$26, Settings!$C$27/100)","v":0},null,0,{"$f":"AgentsFTE(U5, Settings!$C$24, Settings!$C$23,Settings!$C$25/100,Settings!$C$26, Settings!$C$27/100)","v":0}]
[null,"02:00:00",0,{"$f":"AgentsFTE(C6, Settings!$C$24, Settings!$C$23,Settings!$C$25/100,Settings!$C$26, Settings!$C$27/100)","v":0},null,0,{"$f":"AgentsFTE(F6, Settings!$C$24, Settings!$C$23,Settings!$C$25/100,Settings!$C$26, Settings!$C$27/100)","v":0},null,0,{"$f":"AgentsFTE(I6, Settings!$C$24, Settings!$C$23,Settings!$C$25/100,Settings!$C$26, Settings!$C$27/100)","v":0},null,0,{"$f":"AgentsFTE(L6, Settings!$C$24, Settings!$C$23,Settings!$C$25/100,Settings!$C$26, Settings!$C$27/100)","v":0},null,0,{"$f":"AgentsFTE(O6, Settings!$C$24, Settings!$C$23,Settings!$C$25/100,Settings!$C$26, Settings!$C$27/100)","v":0},null,0,{"$f":"AgentsFTE(R6, Settings!$C$24, Settings!$C$23,Settings!$C$25/100,Settings!$C$26, Settings!$C$27/100)","v":0},null,0,{"$f":"AgentsFTE(U6, Settings!$C$24, Settings!$C$23,Settings!$C$25/100,Settings!$C$26, Settings!$C$27/100)","v":0}]
[null,"03:00:00",0,{"$f":"AgentsFTE(C7, Settings!$C$24, Settings!$C$23,Settings!$C$25/100,Settings!$C$26, Settings!$C$27/100)","v":0},null,0,{"$f":"AgentsFTE(F7, Settings!$C$24, Settings!$C$23,Settings!$C$25/100,Settings!$C$26, Settings!$C$27/100)","v":0},null,0,{"$f":"AgentsFTE(I7, Settings!$C$24, Settings!$C$23,Settings!$C$25/100,Settings!$C$26, Settings!$C$27/100)","v":0},null,0,{"$f":"AgentsFTE(L7, Settings!$C$24, Settings!$C$23,Settings!$C$25/100,Settings!$C$26, Settings!$C$27/100)","v":0},null,0,{"$f":"AgentsFTE(O7, Settings!$C$24, Settings!$C$23,Settings!$C$25/100,Settings!$C$26, Settings!$C$27/100)","v":0},null,0,{"$f":"AgentsFTE(R7, Settings!$C$24, Settings!$C$23,Settings!$C$25/100,Settings!$C$26, Settings!$C$27/100)","v":0},null,0,{"$f":"AgentsFTE(U7, Settings!$C$24, Settings!$C$23,Settings!$C$25/100,Settings!$C$26, Settings!$C$27/100)","v":0}]
[null,"04:00:00",0,{"$f":"AgentsFTE(C8, Settings!$C$24, Settings!$C$23,Settings!$C$25/100,Settings!$C$26, Settings!$C$27/100)","v":0},null,0,{"$f":"AgentsFTE(F8, Settings!$C$24, Settings!$C$23,Settings!$C$25/100,Settings!$C$26, Settings!$C$27/100)","v":0},null,0,{"$f":"AgentsFTE(I8, Settings!$C$24, Settings!$C$23,Settings!$C$25/100,Settings!$C$26, Settings!$C$27/100)","v":0},null,0,{"$f":"AgentsFTE(L8, Settings!$C$24, Settings!$C$23,Settings!$C$25/100,Settings!$C$26, Settings!$C$27/100)","v":0},null,0,{"$f":"AgentsFTE(O8, Settings!$C$24, Settings!$C$23,Settings!$C$25/100,Settings!$C$26, Settings!$C$27/100)","v":0},null,0,{"$f":"AgentsFTE(R8, Settings!$C$24, Settings!$C$23,Settings!$C$25/100,Settings!$C$26, Settings!$C$27/100)","v":0},null,0,{"$f":"AgentsFTE(U8, Settings!$C$24, Settings!$C$23,Settings!$C$25/100,Settings!$C$26, Settings!$C$27/100)","v":0}]
[null,"05:00:00",0,{"$f":"AgentsFTE(C9, Settings!$C$24, Settings!$C$23,Settings!$C$25/100,Settings!$C$26, Settings!$C$27/100)","v":0},null,0,{"$f":"AgentsFTE(F9, Settings!$C$24, Settings!$C$23,Settings!$C$25/100,Settings!$C$26, Settings!$C$27/100)","v":0},null,0,{"$f":"AgentsFTE(I9, Settings!$C$24, Settings!$C$23,Settings!$C$25/100,Settings!$C$26, Settings!$C$27/100)","v":0},null,0,{"$f":"AgentsFTE(L9, Settings!$C$24, Settings!$C$23,Settings!$C$25/100,Settings!$C$26, Settings!$C$27/100)","v":0},null,0,{"$f":"AgentsFTE(O9, Settings!$C$24, Settings!$C$23,Settings!$C$25/100,Settings!$C$26, Settings!$C$27/100)","v":0},null,0,{"$f":"AgentsFTE(R9, Settings!$C$24, Settings!$C$23,Settings!$C$25/100,Settings!$C$26, Settings!$C$27/100)","v":0},null,0,{"$f":"AgentsFTE(U9, Settings!$C$24, Settings!$C$23,Settings!$C$25/100,Settings!$C$26, Settings!$C$27/100)","v":0}]
[null,"06:00:00",0,{"$f":"AgentsFTE(C10, Settings!$C$24, Settings!$C$23,Settings!$C$25/100,Settings!$C$26, Settings!$C$27/100)","v":0},null,0,{"$f":"AgentsFTE(F10, Settings!$C$24, Settings!$C$23,Settings!$C$25/100,Settings!$C$26, Settings!$C$27/100)","v":0},null,0,{"$f":"AgentsFTE(I10, Settings!$C$24, Settings!$C$23,Settings!$C$25/100,Settings!$C$26, Settings!$C$27/100)","v":0},null,0,{"$f":"AgentsFTE(L10, Settings!$C$24, Settings!$C$23,Settings!$C$25/100,Settings!$C$26, Settings!$C$27/100)","v":0},null,0,{"$f":"AgentsFTE(O10, Settings!$C$24, Settings!$C$23,Settings!$C$25/100,Settings!$C$26, Settings!$C$27/100)","v":0},null,0,{"$f":"AgentsFTE(R10, Settings!$C$24, Settings!$C$23,Settings!$C$25/100,Settings!$C$26, Settings!$C$27/100)","v":0},null,0,{"$f":"AgentsFTE(U10, Settings!$C$24, Settings!$C$23,Settings!$C$25/100,Settings!$C$26, Settings!$C$27/100)","v":0}]
[null,"07:00:00",0,{"$f":"AgentsFTE(C11, Settings!$C$24, Settings!$C$23,Settings!$C$25/100,Settings!$C$26, Settings!$C$27/100)","v":0},null,0,{"$f":"AgentsFTE(F11, Settings!$C$24, Settings!$C$23,Settings!$C$25/100,Settings!$C$26, Settings!$C$27/100)","v":0},null,0,{"$f":"AgentsFTE(I11, Settings!$C$24, Settings!$C$23,Settings!$C$25/100,Settings!$C$26, Settings!$C$27/100)","v":0},null,0,{"$f":"AgentsFTE(L11, Settings!$C$24, Settings!$C$23,Settings!$C$25/100,Settings!$C$26, Settings!$C$27/100)","v":0},null,0,{"$f":"AgentsFTE(O11, Settings!$C$24, Settings!$C$23,Settings!$C$25/100,Settings!$C$26, Settings!$C$27/100)","v":0},null,0,{"$f":"AgentsFTE(R11, Settings!$C$24, Settings!$C$23,Settings!$C$25/100,Settings!$C$26, Settings!$C$27/100)","v":0},null,0,{"$f":"AgentsFTE(U11, Settings!$C$24, Settings!$C$23,Settings!$C$25/100,Settings!$C$26, Settings!$C$27/100)","v":0}]
[null,"08:00:00",0,{"$f":"AgentsFTE(C12, Settings!$C$24, Settings!$C$23,Settings!$C$25/100,Settings!$C$26, Settings!$C$27/100)","v":0},null,0,{"$f":"AgentsFTE(F12, Settings!$C$24, Settings!$C$23,Settings!$C$25/100,Settings!$C$26, Settings!$C$27/100)","v":0},null,0,{"$f":"AgentsFTE(I12, Settings!$C$24, Settings!$C$23,Settings!$C$25/100,Settings!$C$26, Settings!$C$27/100)","v":0},null,0,{"$f":"AgentsFTE(L12, Settings!$C$24, Settings!$C$23,Settings!$C$25/100,Settings!$C$26, Settings!$C$27/100)","v":0},null,0,{"$f":"AgentsFTE(O12, Settings!$C$24, Settings!$C$23,Settings!$C$25/100,Settings!$C$26, Settings!$C$27/100)","v":0},null,0,{"$f":"AgentsFTE(R12, Settings!$C$24, Settings!$C$23,Settings!$C$25/100,Settings!$C$26, Settings!$C$27/100)","v":0},null,0,{"$f":"AgentsFTE(U12, Settings!$C$24, Settings!$C$23,Settings!$C$25/100,Settings!$C$26, Settings!$C$27/100)","v":0}]
[null,"09:00:00",0,{"$f":"AgentsFTE(C13, Settings!$C$24, Settings!$C$23,Settings!$C$25/100,Settings!$C$26, Settings!$C$27/100)","v":0},null,0,{"$f":"AgentsFTE(F13, Settings!$C$24, Settings!$C$23,Settings!$C$25/100,Settings!$C$26, Settings!$C$27/100)","v":0},null,0,{"$f":"AgentsFTE(I13, Settings!$C$24, Settings!$C$23,Settings!$C$25/100,Settings!$C$26, Settings!$C$27/100)","v":0},null,0,{"$f":"AgentsFTE(L13, Settings!$C$24, Settings!$C$23,Settings!$C$25/100,Settings!$C$26, Settings!$C$27/100)","v":0},null,0,{"$f":"AgentsFTE(O13, Settings!$C$24, Settings!$C$23,Settings!$C$25/100,Settings!$C$26, Settings!$C$27/100)","v":0},null,0,{"$f":"AgentsFTE(R13, Settings!$C$24, Settings!$C$23,Settings!$C$25/100,Settings!$C$26, Settings!$C$27/100)","v":0},null,0,{"$f":"AgentsFTE(U13, Settings!$C$24, Settings!$C$23,Settings!$C$25/100,Settings!$C$26, Settings!$C$27/100)","v":0}]
[null,"10:00:00",0,{"$f":"AgentsFTE(C14, Settings!$C$24, Settings!$C$23,Settings!$C$25/100,Settings!$C$26, Settings!$C$27/100)","v":0},null,0,{"$f":"AgentsFTE(F14, Settings!$C$24, Settings!$C$23,Settings!$C$25/100,Settings!$C$26, Settings!$C$27/100)","v":0},null,0,{"$f":"AgentsFTE(I14, Settings!$C$24, Settings!$C$23,Settings!$C$25/100,Settings!$C$26, Settings!$C$27/100)","v":0},null,0,{"$f":"AgentsFTE(L14, Settings!$C$24, Settings!$C$23,Settings!$C$25/100,Settings!$C$26, Settings!$C$27/100)","v":0},null,0,{"$f":"AgentsFTE(O14, Settings!$C$24, Settings!$C$23,Settings!$C$25/100,Settings!$C$26, Settings!$C$27/100)","v":0},null,0,{"$f":"AgentsFTE(R14, Settings!$C$24, Settings!$C$23,Settings!$C$25/100,Settings!$C$26, Settings!$C$27/100)","v":0},null,0,{"$f":"AgentsFTE(U14, Settings!$C$24, Settings!$C$23,Settings!$C$25/100,Settings!$C$26, Settings!$C$27/100)","v":0}]
[null,"11:00:00",0,{"$f":"AgentsFTE(C15, Settings!$C$24, Settings!$C$23,Settings!$C$25/100,Settings!$C$26, Settings!$C$27/100)","v":0},null,0,{"$f":"AgentsFTE(F15, Settings!$C$24, Settings!$C$23,Settings!$C$25/100,Settings!$C$26, Settings!$C$27/100)","v":0},null,0,{"$f":"AgentsFTE(I15, Settings!$C$24, Settings!$C$23,Settings!$C$25/100,Settings!$C$26, Settings!$C$27/100)","v":0},null,0,{"$f":"AgentsFTE(L15, Settings!$C$24, Settings!$C$23,Settings!$C$25/100,Settings!$C$26, Settings!$C$27/100)","v":0},null,0,{"$f":"AgentsFTE(O15, Settings!$C$24, Settings!$C$23,Settings!$C$25/100,Settings!$C$26, Settings!$C$27/100)","v":0},null,0,{"$f":"AgentsFTE(R15, Settings!$C$24, Settings!$C$23,Settings!$C$25/100,Settings!$C$26, Settings!$C$27/100)","v":0},null,0,{"$f":"AgentsFTE(U15, Settings!$C$24, Settings!$C$23,Settings!$C$25/100,Settings!$C$26, Settings!$C$27/100)","v":0}]
[null,"12:00:00",0,{"$f":"AgentsFTE(C16, Settings!$C$24, Settings!$C$23,Settings!$C$25/100,Settings!$C$26, Settings!$C$27/100)","v":0},null,0,{"$f":"AgentsFTE(F16, Settings!$C$24, Settings!$C$23,Settings!$C$25/100,Settings!$C$26, Settings!$C$27/100)","v":0},null,0,{"$f":"AgentsFTE(I16, Settings!$C$24, Settings!$C$23,Settings!$C$25/100,Settings!$C$26, Settings!$C$27/100)","v":0},null,0,{"$f":"AgentsFTE(L16, Settings!$C$24, Settings!$C$23,Settings!$C$25/100,Settings!$C$26, Settings!$C$27/100)","v":0},null,0,{"$f":"AgentsFTE(O16, Settings!$C$24, Settings!$C$23,Settings!$C$25/100,Settings!$C$26, Settings!$C$27/100)","v":0},null,0,{"$f":"AgentsFTE(R16, Settings!$C$24, Settings!$C$23,Settings!$C$25/100,Settings!$C$26, Settings!$C$27/100)","v":0},null,0,{"$f":"AgentsFTE(U16, Settings!$C$24, Settings!$C$23,Settings!$C$25/100,Settings!$C$26, Settings!$C$27/100)","v":0}]
[null,"13:00:00",0,{"$f":"AgentsFTE(C17, Settings!$C$24, Settings!$C$23,Settings!$C$25/100,Settings!$C$26, Settings!$C$27/100)","v":0},null,0,{"$f":"AgentsFTE(F17, Settings!$C$24, Settings!$C$23,Settings!$C$25/100,Settings!$C$26, Settings!$C$27/100)","v":0},null,0,{"$f":"AgentsFTE(I17, Settings!$C$24, Settings!$C$23,Settings!$C$25/100,Settings!$C$26, Settings!$C$27/100)","v":0},null,0,{"$f":"AgentsFTE(L17, Settings!$C$24, Settings!$C$23,Settings!$C$25/100,Settings!$C$26, Settings!$C$27/100)","v":0},null,0,{"$f":"AgentsFTE(O17, Settings!$C$24, Settings!$C$23,Settings!$C$25/100,Settings!$C$26, Settings!$C$27/100)","v":0},null,0,{"$f":"AgentsFTE(R17, Settings!$C$24, Settings!$C$23,Settings!$C$25/100,Settings!$C$26, Settings!$C$27/100)","v":0},null,0,{"$f":"AgentsFTE(U17, Settings!$C$24, Settings!$C$23,Settings!$C$25/100,Settings!$C$26, Settings!$C$27/100)","v":0}]
[null,"14:00:00",0,{"$f":"AgentsFTE(C18, Settings!$C$24, Settings!$C$23,Settings!$C$25/100,Settings!$C$26, Settings!$C$27/100)","v":0},null,0,{"$f":"AgentsFTE(F18, Settings!$C$24, Settings!$C$23,Settings!$C$25/100,Settings!$C$26, Settings!$C$27/100)","v":0},null,0,{"$f":"AgentsFTE(I18, Settings!$C$24, Settings!$C$23,Settings!$C$25/100,Settings!$C$26, Settings!$C$27/100)","v":0},null,0,{"$f":"AgentsFTE(L18, Settings!$C$24, Settings!$C$23,Settings!$C$25/100,Settings!$C$26, Settings!$C$27/100)","v":0},null,0,{"$f":"AgentsFTE(O18, Settings!$C$24, Settings!$C$23,Settings!$C$25/100,Settings!$C$26, Settings!$C$27/100)","v":0},null,0,{"$f":"AgentsFTE(R18, Settings!$C$24, Settings!$C$23,Settings!$C$25/100,Settings!$C$26, Settings!$C$27/100)","v":0},null,0,{"$f":"AgentsFTE(U18, Settings!$C$24, Settings!$C$23,Settings!$C$25/100,Settings!$C$26, Settings!$C$27/100)","v":0}]
[null,"15:00:00",0,{"$f":"AgentsFTE(C19, Settings!$C$24, Settings!$C$23,Settings!$C$25/100,Settings!$C$26, Settings!$C$27/100)","v":0},null,0,{"$f":"AgentsFTE(F19, Settings!$C$24, Settings!$C$23,Settings!$C$25/100,Settings!$C$26, Settings!$C$27/100)","v":0},null,0,{"$f":"AgentsFTE(I19, Settings!$C$24, Settings!$C$23,Settings!$C$25/100,Settings!$C$26, Settings!$C$27/100)","v":0},null,0,{"$f":"AgentsFTE(L19, Settings!$C$24, Settings!$C$23,Settings!$C$25/100,Settings!$C$26, Settings!$C$27/100)","v":0},null,0,{"$f":"AgentsFTE(O19, Settings!$C$24, Settings!$C$23,Settings!$C$25/100,Settings!$C$26, Settings!$C$27/100)","v":0},null,0,{"$f":"AgentsFTE(R19, Settings!$C$24, Settings!$C$23,Settings!$C$25/100,Settings!$C$26, Settings!$C$27/100)","v":0},null,0,{"$f":"AgentsFTE(U19, Settings!$C$24, Settings!$C$23,Settings!$C$25/100,Settings!$C$26, Settings!$C$27/100)","v":0}]
[null,"16:00:00",0,{"$f":"AgentsFTE(C20, Settings!$C$24, Settings!$C$23,Settings!$C$25/100,Settings!$C$26, Settings!$C$27/100)","v":0},null,0,{"$f":"AgentsFTE(F20, Settings!$C$24, Settings!$C$23,Settings!$C$25/100,Settings!$C$26, Settings!$C$27/100)","v":0},null,0,{"$f":"AgentsFTE(I20, Settings!$C$24, Settings!$C$23,Settings!$C$25/100,Settings!$C$26, Settings!$C$27/100)","v":0},null,0,{"$f":"AgentsFTE(L20, Settings!$C$24, Settings!$C$23,Settings!$C$25/100,Settings!$C$26, Settings!$C$27/100)","v":0},null,0,{"$f":"AgentsFTE(O20, Settings!$C$24, Settings!$C$23,Settings!$C$25/100,Settings!$C$26, Settings!$C$27/100)","v":0},null,0,{"$f":"AgentsFTE(R20, Settings!$C$24, Settings!$C$23,Settings!$C$25/100,Settings!$C$26, Settings!$C$27/100)","v":0},null,0,{"$f":"AgentsFTE(U20, Settings!$C$24, Settings!$C$23,Settings!$C$25/100,Settings!$C$26, Settings!$C$27/100)","v":0}]
[null,"17:00:00",0,{"$f":"AgentsFTE(C21, Settings!$C$24, Settings!$C$23,Settings!$C$25/100,Settings!$C$26, Settings!$C$27/100)","v":0},null,0,{"$f":"AgentsFTE(F21, Settings!$C$24, Settings!$C$23,Settings!$C$25/100,Settings!$C$26, Settings!$C$27/100)","v":0},null,0,{"$f":"AgentsFTE(I21, Settings!$C$24, Settings!$C$23,Settings!$C$25/100,Settings!$C$26, Settings!$C$27/100)","v":0},null,0,{"$f":"AgentsFTE(L21, Settings!$C$24, Settings!$C$23,Settings!$C$25/100,Settings!$C$26, Settings!$C$27/100)","v":0},null,0,{"$f":"AgentsFTE(O21, Settings!$C$24, Settings!$C$23,Settings!$C$25/100,Settings!$C$26, Settings!$C$27/100)","v":0},null,0,{"$f":"AgentsFTE(R21, Settings!$C$24, Settings!$C$23,Settings!$C$25/100,Settings!$C$26, Settings!$C$27/100)","v":0},null,0,{"$f":"AgentsFTE(U21, Settings!$C$24, Settings!$C$23,Settings!$C$25/100,Settings!$C$26, Settings!$C$27/100)","v":0}]
[null,"18:00:00",0,{"$f":"AgentsFTE(C22, Settings!$C$24, Settings!$C$23,Settings!$C$25/100,Settings!$C$26, Settings!$C$27/100)","v":0},null,0,{"$f":"AgentsFTE(F22, Settings!$C$24, Settings!$C$23,Settings!$C$25/100,Settings!$C$26, Settings!$C$27/100)","v":0},null,0,{"$f":"AgentsFTE(I22, Settings!$C$24, Settings!$C$23,Settings!$C$25/100,Settings!$C$26, Settings!$C$27/100)","v":0},null,0,{"$f":"AgentsFTE(L22, Settings!$C$24, Settings!$C$23,Settings!$C$25/100,Settings!$C$26, Settings!$C$27/100)","v":0},null,0,{"$f":"AgentsFTE(O22, Settings!$C$24, Settings!$C$23,Settings!$C$25/100,Settings!$C$26, Settings!$C$27/100)","v":0},null,0,{"$f":"AgentsFTE(R22, Settings!$C$24, Settings!$C$23,Settings!$C$25/100,Settings!$C$26, Settings!$C$27/100)","v":0},null,0,{"$f":"AgentsFTE(U22, Settings!$C$24, Settings!$C$23,Settings!$C$25/100,Settings!$C$26, Settings!$C$27/100)","v":0}]
[null,"19:00:00",0,{"$f":"AgentsFTE(C23, Settings!$C$24, Settings!$C$23,Settings!$C$25/100,Settings!$C$26, Settings!$C$27/100)","v":0},null,0,{"$f":"AgentsFTE(F23, Settings!$C$24, Settings!$C$23,Settings!$C$25/100,Settings!$C$26, Settings!$C$27/100)","v":0},null,0,{"$f":"AgentsFTE(I23, Settings!$C$24, Settings!$C$23,Settings!$C$25/100,Settings!$C$26, Settings!$C$27/100)","v":0},null,0,{"$f":"AgentsFTE(L23, Settings!$C$24, Settings!$C$23,Settings!$C$25/100,Settings!$C$26, Settings!$C$27/100)","v":0},null,0,{"$f":"AgentsFTE(O23, Settings!$C$24, Settings!$C$23,Settings!$C$25/100,Settings!$C$26, Settings!$C$27/100)","v":0},null,0,{"$f":"AgentsFTE(R23, Settings!$C$24, Settings!$C$23,Settings!$C$25/100,Settings!$C$26, Settings!$C$27/100)","v":0},null,0,{"$f":"AgentsFTE(U23, Settings!$C$24, Settings!$C$23,Settings!$C$25/100,Settings!$C$26, Settings!$C$27/100)","v":0}]
[null,"20:00:00",0,{"$f":"AgentsFTE(C24, Settings!$C$24, Settings!$C$23,Settings!$C$25/100,Settings!$C$26, Settings!$C$27/100)","v":0},null,0,{"$f":"AgentsFTE(F24, Settings!$C$24, Settings!$C$23,Settings!$C$25/100,Settings!$C$26, Settings!$C$27/100)","v":0},null,0,{"$f":"AgentsFTE(I24, Settings!$C$24, Settings!$C$23,Settings!$C$25/100,Settings!$C$26, Settings!$C$27/100)","v":0},null,0,{"$f":"AgentsFTE(L24, Settings!$C$24, Settings!$C$23,Settings!$C$25/100,Settings!$C$26, Settings!$C$27/100)","v":0},null,0,{"$f":"AgentsFTE(O24, Settings!$C$24, Settings!$C$23,Settings!$C$25/100,Settings!$C$26, Settings!$C$27/100)","v":0},null,0,{"$f":"AgentsFTE(R24, Settings!$C$24, Settings!$C$23,Settings!$C$25/100,Settings!$C$26, Settings!$C$27/100)","v":0},null,0,{"$f":"AgentsFTE(U24, Settings!$C$24, Settings!$C$23,Settings!$C$25/100,Settings!$C$26, Settings!$C$27/100)","v":0}]
[null,"21:00:00",0,{"$f":"AgentsFTE(C25, Settings!$C$24, Settings!$C$23,Settings!$C$25/100,Settings!$C$26, Settings!$C$27/100)","v":0},null,0,{"$f":"AgentsFTE(F25, Settings!$C$24, Settings!$C$23,Settings!$C$25/100,Settings!$C$26, Settings!$C$27/100)","v":0},null,0,{"$f":"AgentsFTE(I25, Settings!$C$24, Settings!$C$23,Settings!$C$25/100,Settings!$C$26, Settings!$C$27/100)","v":0},null,0,{"$f":"AgentsFTE(L25, Settings!$C$24, Settings!$C$23,Settings!$C$25/100,Settings!$C$26, Settings!$C$27/100)","v":0},null,0,{"$f":"AgentsFTE(O25, Settings!$C$24, Settings!$C$23,Settings!$C$25/100,Settings!$C$26, Settings!$C$27/100)","v":0},null,0,{"$f":"AgentsFTE(R25, Settings!$C$24, Settings!$C$23,Settings!$C$25/100,Settings!$C$26, Settings!$C$27/100)","v":0},null,0,{"$f":"AgentsFTE(U25, Settings!$C$24, Settings!$C$23,Settings!$C$25/100,Settings!$C$26, Settings!$C$27/100)","v":0}]
[null,"22:00:00",0,{"$f":"AgentsFTE(C26, Settings!$C$24, Settings!$C$23,Settings!$C$25/100,Settings!$C$26, Settings!$C$27/100)","v":0},null,0,{"$f":"AgentsFTE(F26, Settings!$C$24, Settings!$C$23,Settings!$C$25/100,Settings!$C$26, Settings!$C$27/100)","v":0},null,0,{"$f":"AgentsFTE(I26, Settings!$C$24, Settings!$C$23,Settings!$C$25/100,Settings!$C$26, Settings!$C$27/100)","v":0},null,0,{"$f":"AgentsFTE(L26, Settings!$C$24, Settings!$C$23,Settings!$C$25/100,Settings!$C$26, Settings!$C$27/100)","v":0},null,0,{"$f":"AgentsFTE(O26, Settings!$C$24, Settings!$C$23,Settings!$C$25/100,Settings!$C$26, Settings!$C$27/100)","v":0},null,0,{"$f":"AgentsFTE(R26, Settings!$C$24, Settings!$C$23,Settings!$C$25/100,Settings!$C$26, Settings!$C$27/100)","v":0},null,0,{"$f":"AgentsFTE(U26, Settings!$C$24, Settings!$C$23,Settings!$C$25/100,Settings!$C$26, Settings!$C$27/100)","v":0}]
[null,"23:00:00",0,{"$f":"AgentsFTE(C27, Settings!$C$24, Settings!$C$23,Settings!$C$25/100,Settings!$C$26, Settings!$C$27/100)","v":0},null,0,{"$f":"AgentsFTE(F27, Settings!$C$24, Settings!$C$23,Settings!$C$25/100,Settings!$C$26, Settings!$C$27/100)","v":0},null,0,{"$f":"AgentsFTE(I27, Settings!$C$24, Settings!$C$23,Settings!$C$25/100,Settings!$C$26, Settings!$C$27/100)","v":0},null,0,{"$f":"AgentsFTE(L27, Settings!$C$24, Settings!$C$23,Settings!$C$25/100,Settings!$C$26, Settings!$C$27/100)","v":0},null,0,{"$f":"AgentsFTE(O27, Settings!$C$24, Settings!$C$23,Settings!$C$25/100,Settings!$C$26, Settings!$C$27/100)","v":0},null,0,{"$f":"AgentsFTE(R27, Settings!$C$24, Settings!$C$23,Settings!$C$25/100,Settings!$C$26, Settings!$C$27/100)","v":0},null,0,{"$f":"AgentsFTE(U27, Settings!$C$24, Settings!$C$23,Settings!$C$25/100,Settings!$C$26, Settings!$C$27/100)","v":0}]

{"sheet":"5","index":5,"n_rows":27,"n_cols":23,"rows_kept":27,"cut":false,"hidden":false,"merged":[[0,1,0,22],[1,2,1,4],[1,5,1,7],[1,8,1,10],[1,11,1,13],[1,14,1,16],[1,17,1,19],[1,20,1,22]]}
[null,"Skill 5"]
[null,null,"Monday",null,null,"Tuesday",null,null,"Wednesday",null,null,"Thursday",null,null,"Friday",null,null,"Saturday",null,null,"Sunday "]
[null,"Eastern Time","Calls","Need","Have","Calls","Need","Have","Calls","Need","Have","Calls","Need","Have","Calls","Need","Have","Calls","Need","Have","Calls","Need","Have"]
[null,"00:00:00",0,{"$f":"AgentsFTE(C4, Settings!$C$31, Settings!$C$30,Settings!$C$32/100,Settings!$C$33, Settings!$C$34/100)","v":0},null,0,{"$f":"AgentsFTE(F4, Settings!$C$31, Settings!$C$30,Settings!$C$32/100,Settings!$C$33, Settings!$C$34/100)","v":0},null,0,{"$f":"AgentsFTE(I4, Settings!$C$31, Settings!$C$30,Settings!$C$32/100,Settings!$C$33, Settings!$C$34/100)","v":0},null,0,{"$f":"AgentsFTE(L4, Settings!$C$31, Settings!$C$30,Settings!$C$32/100,Settings!$C$33, Settings!$C$34/100)","v":0},null,0,{"$f":"AgentsFTE(O4, Settings!$C$31, Settings!$C$30,Settings!$C$32/100,Settings!$C$33, Settings!$C$34/100)","v":0},null,0,{"$f":"AgentsFTE(R4, Settings!$C$31, Settings!$C$30,Settings!$C$32/100,Settings!$C$33, Settings!$C$34/100)","v":0},null,0,{"$f":"AgentsFTE(U4, Settings!$C$31, Settings!$C$30,Settings!$C$32/100,Settings!$C$33, Settings!$C$34/100)","v":0}]
[null,"01:00:00",0,{"$f":"AgentsFTE(C5, Settings!$C$31, Settings!$C$30,Settings!$C$32/100,Settings!$C$33, Settings!$C$34/100)","v":0},null,0,{"$f":"AgentsFTE(F5, Settings!$C$31, Settings!$C$30,Settings!$C$32/100,Settings!$C$33, Settings!$C$34/100)","v":0},null,0,{"$f":"AgentsFTE(I5, Settings!$C$31, Settings!$C$30,Settings!$C$32/100,Settings!$C$33, Settings!$C$34/100)","v":0},null,0,{"$f":"AgentsFTE(L5, Settings!$C$31, Settings!$C$30,Settings!$C$32/100,Settings!$C$33, Settings!$C$34/100)","v":0},null,0,{"$f":"AgentsFTE(O5, Settings!$C$31, Settings!$C$30,Settings!$C$32/100,Settings!$C$33, Settings!$C$34/100)","v":0},null,0,{"$f":"AgentsFTE(R5, Settings!$C$31, Settings!$C$30,Settings!$C$32/100,Settings!$C$33, Settings!$C$34/100)","v":0},null,0,{"$f":"AgentsFTE(U5, Settings!$C$31, Settings!$C$30,Settings!$C$32/100,Settings!$C$33, Settings!$C$34/100)","v":0}]
[null,"02:00:00",0,{"$f":"AgentsFTE(C6, Settings!$C$31, Settings!$C$30,Settings!$C$32/100,Settings!$C$33, Settings!$C$34/100)","v":0},null,0,{"$f":"AgentsFTE(F6, Settings!$C$31, Settings!$C$30,Settings!$C$32/100,Settings!$C$33, Settings!$C$34/100)","v":0},null,0,{"$f":"AgentsFTE(I6, Settings!$C$31, Settings!$C$30,Settings!$C$32/100,Settings!$C$33, Settings!$C$34/100)","v":0},null,0,{"$f":"AgentsFTE(L6, Settings!$C$31, Settings!$C$30,Settings!$C$32/100,Settings!$C$33, Settings!$C$34/100)","v":0},null,0,{"$f":"AgentsFTE(O6, Settings!$C$31, Settings!$C$30,Settings!$C$32/100,Settings!$C$33, Settings!$C$34/100)","v":0},null,0,{"$f":"AgentsFTE(R6, Settings!$C$31, Settings!$C$30,Settings!$C$32/100,Settings!$C$33, Settings!$C$34/100)","v":0},null,0,{"$f":"AgentsFTE(U6, Settings!$C$31, Settings!$C$30,Settings!$C$32/100,Settings!$C$33, Settings!$C$34/100)","v":0}]
[null,"03:00:00",0,{"$f":"AgentsFTE(C7, Settings!$C$31, Settings!$C$30,Settings!$C$32/100,Settings!$C$33, Settings!$C$34/100)","v":0},null,0,{"$f":"AgentsFTE(F7, Settings!$C$31, Settings!$C$30,Settings!$C$32/100,Settings!$C$33, Settings!$C$34/100)","v":0},null,0,{"$f":"AgentsFTE(I7, Settings!$C$31, Settings!$C$30,Settings!$C$32/100,Settings!$C$33, Settings!$C$34/100)","v":0},null,0,{"$f":"AgentsFTE(L7, Settings!$C$31, Settings!$C$30,Settings!$C$32/100,Settings!$C$33, Settings!$C$34/100)","v":0},null,0,{"$f":"AgentsFTE(O7, Settings!$C$31, Settings!$C$30,Settings!$C$32/100,Settings!$C$33, Settings!$C$34/100)","v":0},null,0,{"$f":"AgentsFTE(R7, Settings!$C$31, Settings!$C$30,Settings!$C$32/100,Settings!$C$33, Settings!$C$34/100)","v":0},null,0,{"$f":"AgentsFTE(U7, Settings!$C$31, Settings!$C$30,Settings!$C$32/100,Settings!$C$33, Settings!$C$34/100)","v":0}]
[null,"04:00:00",0,{"$f":"AgentsFTE(C8, Settings!$C$31, Settings!$C$30,Settings!$C$32/100,Settings!$C$33, Settings!$C$34/100)","v":0},null,0,{"$f":"AgentsFTE(F8, Settings!$C$31, Settings!$C$30,Settings!$C$32/100,Settings!$C$33, Settings!$C$34/100)","v":0},null,0,{"$f":"AgentsFTE(I8, Settings!$C$31, Settings!$C$30,Settings!$C$32/100,Settings!$C$33, Settings!$C$34/100)","v":0},null,0,{"$f":"AgentsFTE(L8, Settings!$C$31, Settings!$C$30,Settings!$C$32/100,Settings!$C$33, Settings!$C$34/100)","v":0},null,0,{"$f":"AgentsFTE(O8, Settings!$C$31, Settings!$C$30,Settings!$C$32/100,Settings!$C$33, Settings!$C$34/100)","v":0},null,0,{"$f":"AgentsFTE(R8, Settings!$C$31, Settings!$C$30,Settings!$C$32/100,Settings!$C$33, Settings!$C$34/100)","v":0},null,0,{"$f":"AgentsFTE(U8, Settings!$C$31, Settings!$C$30,Settings!$C$32/100,Settings!$C$33, Settings!$C$34/100)","v":0}]
[null,"05:00:00",0,{"$f":"AgentsFTE(C9, Settings!$C$31, Settings!$C$30,Settings!$C$32/100,Settings!$C$33, Settings!$C$34/100)","v":0},null,0,{"$f":"AgentsFTE(F9, Settings!$C$31, Settings!$C$30,Settings!$C$32/100,Settings!$C$33, Settings!$C$34/100)","v":0},null,0,{"$f":"AgentsFTE(I9, Settings!$C$31, Settings!$C$30,Settings!$C$32/100,Settings!$C$33, Settings!$C$34/100)","v":0},null,0,{"$f":"AgentsFTE(L9, Settings!$C$31, Settings!$C$30,Settings!$C$32/100,Settings!$C$33, Settings!$C$34/100)","v":0},null,0,{"$f":"AgentsFTE(O9, Settings!$C$31, Settings!$C$30,Settings!$C$32/100,Settings!$C$33, Settings!$C$34/100)","v":0},null,0,{"$f":"AgentsFTE(R9, Settings!$C$31, Settings!$C$30,Settings!$C$32/100,Settings!$C$33, Settings!$C$34/100)","v":0},null,0,{"$f":"AgentsFTE(U9, Settings!$C$31, Settings!$C$30,Settings!$C$32/100,Settings!$C$33, Settings!$C$34/100)","v":0}]
[null,"06:00:00",0,{"$f":"AgentsFTE(C10, Settings!$C$31, Settings!$C$30,Settings!$C$32/100,Settings!$C$33, Settings!$C$34/100)","v":0},null,0,{"$f":"AgentsFTE(F10, Settings!$C$31, Settings!$C$30,Settings!$C$32/100,Settings!$C$33, Settings!$C$34/100)","v":0},null,0,{"$f":"AgentsFTE(I10, Settings!$C$31, Settings!$C$30,Settings!$C$32/100,Settings!$C$33, Settings!$C$34/100)","v":0},null,0,{"$f":"AgentsFTE(L10, Settings!$C$31, Settings!$C$30,Settings!$C$32/100,Settings!$C$33, Settings!$C$34/100)","v":0},null,0,{"$f":"AgentsFTE(O10, Settings!$C$31, Settings!$C$30,Settings!$C$32/100,Settings!$C$33, Settings!$C$34/100)","v":0},null,0,{"$f":"AgentsFTE(R10, Settings!$C$31, Settings!$C$30,Settings!$C$32/100,Settings!$C$33, Settings!$C$34/100)","v":0},null,0,{"$f":"AgentsFTE(U10, Settings!$C$31, Settings!$C$30,Settings!$C$32/100,Settings!$C$33, Settings!$C$34/100)","v":0}]
[null,"07:00:00",0,{"$f":"AgentsFTE(C11, Settings!$C$31, Settings!$C$30,Settings!$C$32/100,Settings!$C$33, Settings!$C$34/100)","v":0},null,0,{"$f":"AgentsFTE(F11, Settings!$C$31, Settings!$C$30,Settings!$C$32/100,Settings!$C$33, Settings!$C$34/100)","v":0},null,0,{"$f":"AgentsFTE(I11, Settings!$C$31, Settings!$C$30,Settings!$C$32/100,Settings!$C$33, Settings!$C$34/100)","v":0},null,0,{"$f":"AgentsFTE(L11, Settings!$C$31, Settings!$C$30,Settings!$C$32/100,Settings!$C$33, Settings!$C$34/100)","v":0},null,0,{"$f":"AgentsFTE(O11, Settings!$C$31, Settings!$C$30,Settings!$C$32/100,Settings!$C$33, Settings!$C$34/100)","v":0},null,0,{"$f":"AgentsFTE(R11, Settings!$C$31, Settings!$C$30,Settings!$C$32/100,Settings!$C$33, Settings!$C$34/100)","v":0},null,0,{"$f":"AgentsFTE(U11, Settings!$C$31, Settings!$C$30,Settings!$C$32/100,Settings!$C$33, Settings!$C$34/100)","v":0}]
[null,"08:00:00",0,{"$f":"AgentsFTE(C12, Settings!$C$31, Settings!$C$30,Settings!$C$32/100,Settings!$C$33, Settings!$C$34/100)","v":0},null,0,{"$f":"AgentsFTE(F12, Settings!$C$31, Settings!$C$30,Settings!$C$32/100,Settings!$C$33, Settings!$C$34/100)","v":0},null,0,{"$f":"AgentsFTE(I12, Settings!$C$31, Settings!$C$30,Settings!$C$32/100,Settings!$C$33, Settings!$C$34/100)","v":0},null,0,{"$f":"AgentsFTE(L12, Settings!$C$31, Settings!$C$30,Settings!$C$32/100,Settings!$C$33, Settings!$C$34/100)","v":0},null,0,{"$f":"AgentsFTE(O12, Settings!$C$31, Settings!$C$30,Settings!$C$32/100,Settings!$C$33, Settings!$C$34/100)","v":0},null,0,{"$f":"AgentsFTE(R12, Settings!$C$31, Settings!$C$30,Settings!$C$32/100,Settings!$C$33, Settings!$C$34/100)","v":0},null,0,{"$f":"AgentsFTE(U12, Settings!$C$31, Settings!$C$30,Settings!$C$32/100,Settings!$C$33, Settings!$C$34/100)","v":0}]
[null,"09:00:00",0,{"$f":"AgentsFTE(C13, Settings!$C$31, Settings!$C$30,Settings!$C$32/100,Settings!$C$33, Settings!$C$34/100)","v":0},null,0,{"$f":"AgentsFTE(F13, Settings!$C$31, Settings!$C$30,Settings!$C$32/100,Settings!$C$33, Settings!$C$34/100)","v":0},null,0,{"$f":"AgentsFTE(I13, Settings!$C$31, Settings!$C$30,Settings!$C$32/100,Settings!$C$33, Settings!$C$34/100)","v":0},null,0,{"$f":"AgentsFTE(L13, Settings!$C$31, Settings!$C$30,Settings!$C$32/100,Settings!$C$33, Settings!$C$34/100)","v":0},null,0,{"$f":"AgentsFTE(O13, Settings!$C$31, Settings!$C$30,Settings!$C$32/100,Settings!$C$33, Settings!$C$34/100)","v":0},null,0,{"$f":"AgentsFTE(R13, Settings!$C$31, Settings!$C$30,Settings!$C$32/100,Settings!$C$33, Settings!$C$34/100)","v":0},null,0,{"$f":"AgentsFTE(U13, Settings!$C$31, Settings!$C$30,Settings!$C$32/100,Settings!$C$33, Settings!$C$34/100)","v":0}]
[null,"10:00:00",0,{"$f":"AgentsFTE(C14, Settings!$C$31, Settings!$C$30,Settings!$C$32/100,Settings!$C$33, Settings!$C$34/100)","v":0},null,0,{"$f":"AgentsFTE(F14, Settings!$C$31, Settings!$C$30,Settings!$C$32/100,Settings!$C$33, Settings!$C$34/100)","v":0},null,0,{"$f":"AgentsFTE(I14, Settings!$C$31, Settings!$C$30,Settings!$C$32/100,Settings!$C$33, Settings!$C$34/100)","v":0},null,0,{"$f":"AgentsFTE(L14, Settings!$C$31, Settings!$C$30,Settings!$C$32/100,Settings!$C$33, Settings!$C$34/100)","v":0},null,0,{"$f":"AgentsFTE(O14, Settings!$C$31, Settings!$C$30,Settings!$C$32/100,Settings!$C$33, Settings!$C$34/100)","v":0},null,0,{"$f":"AgentsFTE(R14, Settings!$C$31, Settings!$C$30,Settings!$C$32/100,Settings!$C$33, Settings!$C$34/100)","v":0},null,0,{"$f":"AgentsFTE(U14, Settings!$C$31, Settings!$C$30,Settings!$C$32/100,Settings!$C$33, Settings!$C$34/100)","v":0}]
[null,"11:00:00",0,{"$f":"AgentsFTE(C15, Settings!$C$31, Settings!$C$30,Settings!$C$32/100,Settings!$C$33, Settings!$C$34/100)","v":0},null,0,{"$f":"AgentsFTE(F15, Settings!$C$31, Settings!$C$30,Settings!$C$32/100,Settings!$C$33, Settings!$C$34/100)","v":0},null,0,{"$f":"AgentsFTE(I15, Settings!$C$31, Settings!$C$30,Settings!$C$32/100,Settings!$C$33, Settings!$C$34/100)","v":0},null,0,{"$f":"AgentsFTE(L15, Settings!$C$31, Settings!$C$30,Settings!$C$32/100,Settings!$C$33, Settings!$C$34/100)","v":0},null,0,{"$f":"AgentsFTE(O15, Settings!$C$31, Settings!$C$30,Settings!$C$32/100,Settings!$C$33, Settings!$C$34/100)","v":0},null,0,{"$f":"AgentsFTE(R15, Settings!$C$31, Settings!$C$30,Settings!$C$32/100,Settings!$C$33, Settings!$C$34/100)","v":0},null,0,{"$f":"AgentsFTE(U15, Settings!$C$31, Settings!$C$30,Settings!$C$32/100,Settings!$C$33, Settings!$C$34/100)","v":0}]
[null,"12:00:00",0,{"$f":"AgentsFTE(C16, Settings!$C$31, Settings!$C$30,Settings!$C$32/100,Settings!$C$33, Settings!$C$34/100)","v":0},null,0,{"$f":"AgentsFTE(F16, Settings!$C$31, Settings!$C$30,Settings!$C$32/100,Settings!$C$33, Settings!$C$34/100)","v":0},null,0,{"$f":"AgentsFTE(I16, Settings!$C$31, Settings!$C$30,Settings!$C$32/100,Settings!$C$33, Settings!$C$34/100)","v":0},null,0,{"$f":"AgentsFTE(L16, Settings!$C$31, Settings!$C$30,Settings!$C$32/100,Settings!$C$33, Settings!$C$34/100)","v":0},null,0,{"$f":"AgentsFTE(O16, Settings!$C$31, Settings!$C$30,Settings!$C$32/100,Settings!$C$33, Settings!$C$34/100)","v":0},null,0,{"$f":"AgentsFTE(R16, Settings!$C$31, Settings!$C$30,Settings!$C$32/100,Settings!$C$33, Settings!$C$34/100)","v":0},null,0,{"$f":"AgentsFTE(U16, Settings!$C$31, Settings!$C$30,Settings!$C$32/100,Settings!$C$33, Settings!$C$34/100)","v":0}]
[null,"13:00:00",0,{"$f":"AgentsFTE(C17, Settings!$C$31, Settings!$C$30,Settings!$C$32/100,Settings!$C$33, Settings!$C$34/100)","v":0},null,0,{"$f":"AgentsFTE(F17, Settings!$C$31, Settings!$C$30,Settings!$C$32/100,Settings!$C$33, Settings!$C$34/100)","v":0},null,0,{"$f":"AgentsFTE(I17, Settings!$C$31, Settings!$C$30,Settings!$C$32/100,Settings!$C$33, Settings!$C$34/100)","v":0},null,0,{"$f":"AgentsFTE(L17, Settings!$C$31, Settings!$C$30,Settings!$C$32/100,Settings!$C$33, Settings!$C$34/100)","v":0},null,0,{"$f":"AgentsFTE(O17, Settings!$C$31, Settings!$C$30,Settings!$C$32/100,Settings!$C$33, Settings!$C$34/100)","v":0},null,0,{"$f":"AgentsFTE(R17, Settings!$C$31, Settings!$C$30,Settings!$C$32/100,Settings!$C$33, Settings!$C$34/100)","v":0},null,0,{"$f":"AgentsFTE(U17, Settings!$C$31, Settings!$C$30,Settings!$C$32/100,Settings!$C$33, Settings!$C$34/100)","v":0}]
[null,"14:00:00",0,{"$f":"AgentsFTE(C18, Settings!$C$31, Settings!$C$30,Settings!$C$32/100,Settings!$C$33, Settings!$C$34/100)","v":0},null,0,{"$f":"AgentsFTE(F18, Settings!$C$31, Settings!$C$30,Settings!$C$32/100,Settings!$C$33, Settings!$C$34/100)","v":0},null,0,{"$f":"AgentsFTE(I18, Settings!$C$31, Settings!$C$30,Settings!$C$32/100,Settings!$C$33, Settings!$C$34/100)","v":0},null,0,{"$f":"AgentsFTE(L18, Settings!$C$31, Settings!$C$30,Settings!$C$32/100,Settings!$C$33, Settings!$C$34/100)","v":0},null,0,{"$f":"AgentsFTE(O18, Settings!$C$31, Settings!$C$30,Settings!$C$32/100,Settings!$C$33, Settings!$C$34/100)","v":0},null,0,{"$f":"AgentsFTE(R18, Settings!$C$31, Settings!$C$30,Settings!$C$32/100,Settings!$C$33, Settings!$C$34/100)","v":0},null,0,{"$f":"AgentsFTE(U18, Settings!$C$31, Settings!$C$30,Settings!$C$32/100,Settings!$C$33, Settings!$C$34/100)","v":0}]
[null,"15:00:00",0,{"$f":"AgentsFTE(C19, Settings!$C$31, Settings!$C$30,Settings!$C$32/100,Settings!$C$33, Settings!$C$34/100)","v":0},null,0,{"$f":"AgentsFTE(F19, Settings!$C$31, Settings!$C$30,Settings!$C$32/100,Settings!$C$33, Settings!$C$34/100)","v":0},null,0,{"$f":"AgentsFTE(I19, Settings!$C$31, Settings!$C$30,Settings!$C$32/100,Settings!$C$33, Settings!$C$34/100)","v":0},null,0,{"$f":"AgentsFTE(L19, Settings!$C$31, Settings!$C$30,Settings!$C$32/100,Settings!$C$33, Settings!$C$34/100)","v":0},null,0,{"$f":"AgentsFTE(O19, Settings!$C$31, Settings!$C$30,Settings!$C$32/100,Settings!$C$33, Settings!$C$34/100)","v":0},null,0,{"$f":"AgentsFTE(R19, Settings!$C$31, Settings!$C$30,Settings!$C$32/100,Settings!$C$33, Settings!$C$34/100)","v":0},null,0,{"$f":"AgentsFTE(U19, Settings!$C$31, Settings!$C$30,Settings!$C$32/100,Settings!$C$33, Settings!$C$34/100)","v":0}]
[null,"16:00:00",0,{"$f":"AgentsFTE(C20, Settings!$C$31, Settings!$C$30,Settings!$C$32/100,Settings!$C$33, Settings!$C$34/100)","v":0},null,0,{"$f":"AgentsFTE(F20, Settings!$C$31, Settings!$C$30,Settings!$C$32/100,Settings!$C$33, Settings!$C$34/100)","v":0},null,0,{"$f":"AgentsFTE(I20, Settings!$C$31, Settings!$C$30,Settings!$C$32/100,Settings!$C$33, Settings!$C$34/100)","v":0},null,0,{"$f":"AgentsFTE(L20, Settings!$C$31, Settings!$C$30,Settings!$C$32/100,Settings!$C$33, Settings!$C$34/100)","v":0},null,0,{"$f":"AgentsFTE(O20, Settings!$C$31, Settings!$C$30,Settings!$C$32/100,Settings!$C$33, Settings!$C$34/100)","v":0},null,0,{"$f":"AgentsFTE(R20, Settings!$C$31, Settings!$C$30,Settings!$C$32/100,Settings!$C$33, Settings!$C$34/100)","v":0},null,0,{"$f":"AgentsFTE(U20, Settings!$C$31, Settings!$C$30,Settings!$C$32/100,Settings!$C$33, Settings!$C$34/100)","v":0}]
[null,"17:00:00",0,{"$f":"AgentsFTE(C21, Settings!$C$31, Settings!$C$30,Settings!$C$32/100,Settings!$C$33, Settings!$C$34/100)","v":0},null,0,{"$f":"AgentsFTE(F21, Settings!$C$31, Settings!$C$30,Settings!$C$32/100,Settings!$C$33, Settings!$C$34/100)","v":0},null,0,{"$f":"AgentsFTE(I21, Settings!$C$31, Settings!$C$30,Settings!$C$32/100,Settings!$C$33, Settings!$C$34/100)","v":0},null,0,{"$f":"AgentsFTE(L21, Settings!$C$31, Settings!$C$30,Settings!$C$32/100,Settings!$C$33, Settings!$C$34/100)","v":0},null,0,{"$f":"AgentsFTE(O21, Settings!$C$31, Settings!$C$30,Settings!$C$32/100,Settings!$C$33, Settings!$C$34/100)","v":0},null,0,{"$f":"AgentsFTE(R21, Settings!$C$31, Settings!$C$30,Settings!$C$32/100,Settings!$C$33, Settings!$C$34/100)","v":0},null,0,{"$f":"AgentsFTE(U21, Settings!$C$31, Settings!$C$30,Settings!$C$32/100,Settings!$C$33, Settings!$C$34/100)","v":0}]
[null,"18:00:00",0,{"$f":"AgentsFTE(C22, Settings!$C$31, Settings!$C$30,Settings!$C$32/100,Settings!$C$33, Settings!$C$34/100)","v":0},null,0,{"$f":"AgentsFTE(F22, Settings!$C$31, Settings!$C$30,Settings!$C$32/100,Settings!$C$33, Settings!$C$34/100)","v":0},null,0,{"$f":"AgentsFTE(I22, Settings!$C$31, Settings!$C$30,Settings!$C$32/100,Settings!$C$33, Settings!$C$34/100)","v":0},null,0,{"$f":"AgentsFTE(L22, Settings!$C$31, Settings!$C$30,Settings!$C$32/100,Settings!$C$33, Settings!$C$34/100)","v":0},null,0,{"$f":"AgentsFTE(O22, Settings!$C$31, Settings!$C$30,Settings!$C$32/100,Settings!$C$33, Settings!$C$34/100)","v":0},null,0,{"$f":"AgentsFTE(R22, Settings!$C$31, Settings!$C$30,Settings!$C$32/100,Settings!$C$33, Settings!$C$34/100)","v":0},null,0,{"$f":"AgentsFTE(U22, Settings!$C$31, Settings!$C$30,Settings!$C$32/100,Settings!$C$33, Settings!$C$34/100)","v":0}]
[null,"19:00:00",0,{"$f":"AgentsFTE(C23, Settings!$C$31, Settings!$C$30,Settings!$C$32/100,Settings!$C$33, Settings!$C$34/100)","v":0},null,0,{"$f":"AgentsFTE(F23, Settings!$C$31, Settings!$C$30,Settings!$C$32/100,Settings!$C$33, Settings!$C$34/100)","v":0},null,0,{"$f":"AgentsFTE(I23, Settings!$C$31, Settings!$C$30,Settings!$C$32/100,Settings!$C$33, Settings!$C$34/100)","v":0},null,0,{"$f":"AgentsFTE(L23, Settings!$C$31, Settings!$C$30,Settings!$C$32/100,Settings!$C$33, Settings!$C$34/100)","v":0},null,0,{"$f":"AgentsFTE(O23, Settings!$C$31, Settings!$C$30,Settings!$C$32/100,Settings!$C$33, Settings!$C$34/100)","v":0},null,0,{"$f":"AgentsFTE(R23, Settings!$C$31, Settings!$C$30,Settings!$C$32/100,Settings!$C$33, Settings!$C$34/100)","v":0},null,0,{"$f":"AgentsFTE(U23, Settings!$C$31, Settings!$C$30,Settings!$C$32/100,Settings!$C$33, Settings!$C$34/100)","v":0}]
[null,"20:00:00",0,{"$f":"AgentsFTE(C24, Settings!$C$31, Settings!$C$30,Settings!$C$32/100,Settings!$C$33, Settings!$C$34/100)","v":0},null,0,{"$f":"AgentsFTE(F24, Settings!$C$31, Settings!$C$30,Settings!$C$32/100,Settings!$C$33, Settings!$C$34/100)","v":0},null,0,{"$f":"AgentsFTE(I24, Settings!$C$31, Settings!$C$30,Settings!$C$32/100,Settings!$C$33, Settings!$C$34/100)","v":0},null,0,{"$f":"AgentsFTE(L24, Settings!$C$31, Settings!$C$30,Settings!$C$32/100,Settings!$C$33, Settings!$C$34/100)","v":0},null,0,{"$f":"AgentsFTE(O24, Settings!$C$31, Settings!$C$30,Settings!$C$32/100,Settings!$C$33, Settings!$C$34/100)","v":0},null,0,{"$f":"AgentsFTE(R24, Settings!$C$31, Settings!$C$30,Settings!$C$32/100,Settings!$C$33, Settings!$C$34/100)","v":0},null,0,{"$f":"AgentsFTE(U24, Settings!$C$31, Settings!$C$30,Settings!$C$32/100,Settings!$C$33, Settings!$C$34/100)","v":0}]
[null,"21:00:00",0,{"$f":"AgentsFTE(C25, Settings!$C$31, Settings!$C$30,Settings!$C$32/100,Settings!$C$33, Settings!$C$34/100)","v":0},null,0,{"$f":"AgentsFTE(F25, Settings!$C$31, Settings!$C$30,Settings!$C$32/100,Settings!$C$33, Settings!$C$34/100)","v":0},null,0,{"$f":"AgentsFTE(I25, Settings!$C$31, Settings!$C$30,Settings!$C$32/100,Settings!$C$33, Settings!$C$34/100)","v":0},null,0,{"$f":"AgentsFTE(L25, Settings!$C$31, Settings!$C$30,Settings!$C$32/100,Settings!$C$33, Settings!$C$34/100)","v":0},null,0,{"$f":"AgentsFTE(O25, Settings!$C$31, Settings!$C$30,Settings!$C$32/100,Settings!$C$33, Settings!$C$34/100)","v":0},null,0,{"$f":"AgentsFTE(R25, Settings!$C$31, Settings!$C$30,Settings!$C$32/100,Settings!$C$33, Settings!$C$34/100)","v":0},null,0,{"$f":"AgentsFTE(U25, Settings!$C$31, Settings!$C$30,Settings!$C$32/100,Settings!$C$33, Settings!$C$34/100)","v":0}]
[null,"22:00:00",0,{"$f":"AgentsFTE(C26, Settings!$C$31, Settings!$C$30,Settings!$C$32/100,Settings!$C$33, Settings!$C$34/100)","v":0},null,0,{"$f":"AgentsFTE(F26, Settings!$C$31, Settings!$C$30,Settings!$C$32/100,Settings!$C$33, Settings!$C$34/100)","v":0},null,0,{"$f":"AgentsFTE(I26, Settings!$C$31, Settings!$C$30,Settings!$C$32/100,Settings!$C$33, Settings!$C$34/100)","v":0},null,0,{"$f":"AgentsFTE(L26, Settings!$C$31, Settings!$C$30,Settings!$C$32/100,Settings!$C$33, Settings!$C$34/100)","v":0},null,0,{"$f":"AgentsFTE(O26, Settings!$C$31, Settings!$C$30,Settings!$C$32/100,Settings!$C$33, Settings!$C$34/100)","v":0},null,0,{"$f":"AgentsFTE(R26, Settings!$C$31, Settings!$C$30,Settings!$C$32/100,Settings!$C$33, Settings!$C$34/100)","v":0},null,0,{"$f":"AgentsFTE(U26, Settings!$C$31, Settings!$C$30,Settings!$C$32/100,Settings!$C$33, Settings!$C$34/100)","v":0}]
[null,"23:00:00",0,{"$f":"AgentsFTE(C27, Settings!$C$31, Settings!$C$30,Settings!$C$32/100,Settings!$C$33, Settings!$C$34/100)","v":0},null,0,{"$f":"AgentsFTE(F27, Settings!$C$31, Settings!$C$30,Settings!$C$32/100,Settings!$C$33, Settings!$C$34/100)","v":0},null,0,{"$f":"AgentsFTE(I27, Settings!$C$31, Settings!$C$30,Settings!$C$32/100,Settings!$C$33, Settings!$C$34/100)","v":0},null,0,{"$f":"AgentsFTE(L27, Settings!$C$31, Settings!$C$30,Settings!$C$32/100,Settings!$C$33, Settings!$C$34/100)","v":0},null,0,{"$f":"AgentsFTE(O27, Settings!$C$31, Settings!$C$30,Settings!$C$32/100,Settings!$C$33, Settings!$C$34/100)","v":0},null,0,{"$f":"AgentsFTE(R27, Settings!$C$31, Settings!$C$30,Settings!$C$32/100,Settings!$C$33, Settings!$C$34/100)","v":0},null,0,{"$f":"AgentsFTE(U27, Settings!$C$31, Settings!$C$30,Settings!$C$32/100,Settings!$C$33, Settings!$C$34/100)","v":0}]